Workbook

Sheet Alg
D9: Tabelid I
D10: Valemite kasutamine tabelites
D11: Aadresside ja nimede kasutamine tabelites
D12: Table objekti loomine ja kasutamine
D13: Diagrammid ja graafikud
D14: Mitme, omavahel seotud, tabeliga rakendused

Sheet Sisukord
B3: Tabelite loomise ja kasutamise üldpõhimõtted
B4: Aadresside kasutamine
B5: Harjutus "Lagede värvimine I". Aadressid
B6: Tabel Värvid
B7: Ühemuutuja funktsiooni tabuleerimine ja graafikud. Aadressid
B8: Kahemuutuja funktsioon. Aadressid
B9: Kaubad
B10: Nimede määramine ja kasutamine tabelites
B11: Harjutus "Lagede värvimine II". Nimed. Diagrammid
B12: Table-objektid. Tabeli muutmine Table-objektiks
B13: Tabeli loomine otse Table-objektina. Valemites nimed
B14: Tabeli loomine otse Table-objektina. Valemites päisete tekstid
B15: Funktsioonide tabuleerimine ja graafikud. Variant 1
B16: Funktsioonide tabuleerimine ja graafikud. Variant 2. Table-objekt
B17: Kahemuutuja funktsioon. Nimed
B18: Harjutus "Lagede värvimine III". Ülesande püstitus
B19: Tabel Ruumid
B20: Tabel Värvimine
B21: Lisad
B22: Table-objekt. Tulbapäisete kasutamine valemites
B23: Otsimine. Funktsioon VLOOKUP
B24: Valideerimine tabelites
B25: Diagrammid
B26: Valemite kopeerimine
B27: R1C1- aadressid

Sheet Tab_Str
D1: veeb | E1: Klipp Tabelite tüüpstruktuur
B14: Arvutid
B16: Mark | C16: Protsessor | D16: Mälu, MB | E16: Ketas,GB | F16: Hind, € | G16: ...
B17: Aragorn | C17: Pent 4; 3,0 | D17: 512 | E17: 160 | F17: 380
B18: Aura | C18: AMD 64; 3,0 | D18: 512 | E18: 160 | F18: 380
B19: Balrog | C19: Pent 4; 3,0 | D19: 512 | E19: 160 | F19: 320
B20: Ekstra | C20: AMD S; 2,8 | D20: 256 | E20: 80 | F20: 270
B21: Eliisa | C21: AMD S; 3,0 | D21: 512 | E21: 160 | F21: 320
B22: Elsa | C22: Pent 4; 3,2 | D22: 512 | E22: 160 | F22: 540
B23: Frodo | C23: AMD 64; 3,8 | D23: 1024 | E23: 320 | F23: 730
B24: Futura | C24: AMD 64; 3,5 | D24: 512 | E24: 160 | F24: 380
B25: Polaris | C25: Intel C; 2,5 | D25: 256 | E25: 80 | F25: 220
B26: Sambo | C26: Pent 4; 3,0 | D26: 512 | E26: 160 | F26: 450
B27: Super | C27: AMD 64; 4,0 | D27: 2048 | E27: 320 | F27: 830
B28: Tetris | C28: AMD S; 2,6 | D28: 256 | E28: 40 | F28: 240
B29: Ultra | C29: Intel C; 3,0 | D29: 512 | E29: 160 | F29: 300
B32: Töötajad
B34: Isikukood | C34: Eesnimi | D34: Perenimi | E34: Sugu | F34: Sünniaeg | G34: ...
B35: 34002110722 | C35: Karl | D35: Agur | E35: mees | F35: 1940-02-11
B36: 35404050446 | C36: Reijo | D36: Bauman | E36: mees | F36: 1954-04-05
B37: 48007150516 | C37: Erna | D37: Eek | E37: naine | F37: 1980-07-15
B38: 44311270496 | C38: Vilma | D38: Eesmaa | E38: naine | F38: 1943-11-27
B39: 37002030149 | C39: Kristjan | D39: Jürimäe | E39: mees | F39: 1970-02-03
B40: 34906210936 | C40: Jaan | D40: Kaasik | E40: mees | F40: 1949-06-21
B41: 48210210529 | C41: Saima | D41: Kukk | E41: naine | F41: 1982-10-21
B42: 33907250511 | C42: Riho | D42: Kuusk | E42: mees | F42: 1939-07-25
B43: 37906080465 | C43: Kristjan | D43: Mägi | E43: mees | F43: 1979-06-08
B44: 37708220891 | C44: Leida | D44: Nõmmik | E44: mees | F44: 1977-08-22
B45: 35001130124 | C45: Aarne | D45: Oks | E45: mees | F45: 1950-01-13
B55: Arvutite müük | D55: Valemites nimed | G55: käibe- maksu % | H55: 0.18
B57: Kuupäev | C57: Müüja | D57: Mark | E57: Arv | F57: Hind | G57: Maksu- mus k-ga | H57: käibe- maks | I57: Maksu- mus k-ta
B58: 2013-01-02 | C58: Kukk | D58: Sambo | E58: 2 | F58: =VLOOKUP(Mark, Arvutid, 5, 0) -> 450 | G58: =Hind * Arv -> 900 | H58: =maks_kga * k_pr / (1 + k_pr) -> 137.2881356 | I58: =maks_kga - k_maks -> 762.7118644
B59: 2013-01-02 | C59: Kukk | D59: Tetris | E59: 5 | F59: 240 | G59: 1200 | H59: 183.0508475 | I59: 1016.949153
B60: 2013-01-04 | C60: Agur | D60: Balrog | E60: 3 | F60: 320 | G60: 960 | H60: 146.440678 | I60: 813.559322
B61: 2013-01-04 | C61: Kaasik | D61: Aura | E61: 1 | F61: 380 | G61: 380 | H61: 57.96610169 | I61: 322.0338983
B62: 2013-01-04 | C62: Eek | D62: Aragorn | E62: 2 | F62: 380 | G62: 760 | H62: 115.9322034 | I62: 644.0677966
B63: 2013-01-05 | C63: Nõmmik | D63: Balrog | E63: 2 | F63: 320 | G63: 640 | H63: 97.62711864 | I63: 542.3728814
B64: 2013-01-06 | C64: Mägi | D64: Frodo | E64: 1 | F64: 730 | G64: 730 | H64: 111.3559322 | I64: 618.6440678
B65: 2013-01-07 | C65: Kuusk | D65: Elsa | E65: 3 | F65: 540 | G65: 1620 | H65: 247.1186441 | I65: 1372.881356
B66: 2013-01-09 | C66: Kukk | D66: Ekstra | E66: 1 | F66: 270 | G66: 270 | H66: 41.18644068 | I66: 228.8135593
B67: 2013-01-09 | C67: Agur | D67: Frodo | E67: 2 | F67: 730 | G67: 1460 | H67: 222.7118644 | I67: 1237.288136
B68: 2013-01-09 | C68: Kukk | D68: Eliisa | E68: 5 | F68: 320 | G68: 1600 | H68: 244.0677966 | I68: 1355.932203
B69: 2013-01-10 | C69: Mägi | D69: Ultra | E69: 2 | F69: 300 | G69: 600 | H69: 91.52542373 | I69: 508.4745763
B70: 2013-01-10 | C70: Nõmmik | D70: Aragorn | E70: 2 | F70: 380 | G70: 760 | H70: 115.9322034 | I70: 644.0677966
B71: 2013-01-11 | C71: Kuusk | D71: Eliisa | E71: 4 | F71: 320 | G71: 1280 | H71: 195.2542373 | I71: 1084.745763
B72: 2013-01-11 | C72: Kukk | D72: Aura | E72: 2 | F72: 380 | G72: 760 | H72: 115.9322034 | I72: 644.0677966
D74: Kokku: | E74: =SUM(Arv) -> 37 | G74: =SUM(maks_kga) -> 13920 | H74: =SUM(k_maks) -> 2123.389831 | I74: =SUM(maks_kta) -> 11796.61017
B93: Arvutite müük | D93: Valemites aadressid | G93: käibe- maksu % | H93: 0.18
B95: Kuupäev | C95: Müüja | D95: Mark | E95: Arv | F95: Hind | G95: Maksu- mus k-ga | H95: käibe- maks | I95: Maksu- mus k-ta
B96: 2009-01-02 | C96: Kukk | D96: Ekstra | E96: 2 | F96: =VLOOKUP(D96,$B$17:$F$29, 5, 0) -> 270 | G96: =F96 * E96 -> 540 | H96: =G96 * $H$93 / (1 + $H$93) -> 82.37288136 | I96: =G96 - H96 -> 457.6271186
B97: 2009-01-02 | C97: Kukk | D97: Tetris | E97: 5 | F97: 240 | G97: 1200 | H97: 183.0508475 | I97: 1016.949153
B98: 2009-01-04 | C98: Agur | D98: Balrog | E98: 3 | F98: 320 | G98: 960 | H98: 146.440678 | I98: 813.559322
B99: 2009-01-04 | C99: Kaasik | D99: Aura | E99: 1 | F99: 380 | G99: 380 | H99: 57.96610169 | I99: 322.0338983
B100: 2009-01-04 | C100: Eek | D100: Aragorn | E100: 2 | F100: 380 | G100: 760 | H100: 115.9322034 | I100: 644.0677966
B101: 2009-01-05 | C101: Nõmmik | D101: Balrog | E101: 2 | F101: 320 | G101: 640 | H101: 97.62711864 | I101: 542.3728814
B102: 2009-01-06 | C102: Mägi | D102: Frodo | E102: 1 | F102: 730 | G102: 730 | H102: 111.3559322 | I102: 618.6440678
B103: 2009-01-07 | C103: Kuusk | D103: Elsa | E103: 3 | F103: 540 | G103: 1620 | H103: 247.1186441 | I103: 1372.881356
B104: 2009-01-09 | C104: Kukk | D104: Ekstra | E104: 1 | F104: 270 | G104: 270 | H104: 41.18644068 | I104: 228.8135593
B105: 2009-01-09 | C105: Agur | D105: Frodo | E105: 2 | F105: 730 | G105: 1460 | H105: 222.7118644 | I105: 1237.288136
B106: 2009-01-09 | C106: Kukk | D106: Eliisa | E106: 5 | F106: 320 | G106: 1600 | H106: 244.0677966 | I106: 1355.932203
B107: 2009-01-10 | C107: Mägi | D107: Ultra | E107: 2 | F107: 300 | G107: 600 | H107: 91.52542373 | I107: 508.4745763
B108: 2009-01-10 | C108: Nõmmik | D108: Aragorn | E108: 2 | F108: 380 | G108: 760 | H108: 115.9322034 | I108: 644.0677966
B109: 2009-01-11 | C109: Kuusk | D109: Eliisa | E109: 4 | F109: 320 | G109: 1280 | H109: 195.2542373 | I109: 1084.745763
B110: 2009-01-11 | C110: Kukk | D110: Aura | E110: 2 | F110: 380 | G110: 760 | H110: 115.9322034 | I110: 644.0677966
D112: Kokku: | E112: =SUM(E96:E111) -> 37 | G112: =SUM(G96:G111) -> 13560 | H112: =SUM(H96:H111) -> 2068.474576 | I112: =SUM(I96:I111) -> 11491.52542

Sheet Tab_Str_1
D1: veeb | E1: Klipp Tabelite tüüpstruktuur
B14: Arvutid
B16: Mark | C16: Protsessor | D16: Mälu, MB | E16: Ketas,GB | F16: Hind, € | G16: ...
B17: Aragorn | C17: Pent 4; 3,0 | D17: 512 | E17: 160 | F17: 380
B18: Aura | C18: AMD 64; 3,0 | D18: 512 | E18: 160 | F18: 380
B19: Balrog | C19: Pent 4; 3,0 | D19: 512 | E19: 160 | F19: 320
B20: Ekstra | C20: AMD S; 2,8 | D20: 256 | E20: 80 | F20: 270
B21: Eliisa | C21: AMD S; 3,0 | D21: 512 | E21: 160 | F21: 320
B22: Elsa | C22: Pent 4; 3,2 | D22: 512 | E22: 160 | F22: 540
B23: Frodo | C23: AMD 64; 3,8 | D23: 1024 | E23: 320 | F23: 730
B24: Futura | C24: AMD 64; 3,5 | D24: 512 | E24: 160 | F24: 380
B25: Polaris | C25: Intel C; 2,5 | D25: 256 | E25: 80 | F25: 220
B26: Sambo | C26: Pent 4; 3,0 | D26: 512 | E26: 160 | F26: 450
B27: Super | C27: AMD 64; 4,0 | D27: 2048 | E27: 320 | F27: 830
B28: Tetris | C28: AMD S; 2,6 | D28: 256 | E28: 40 | F28: 240
B29: Ultra | C29: Intel C; 3,0 | D29: 512 | E29: 160 | F29: 300
B31: Töötajad
B33: Isikukood | C33: Eesnimi | D33: Perenimi | E33: Sugu | F33: Sünniaeg | G33: ...
B34: 34002110722 | C34: Karl | D34: Agur | E34: mees | F34: 1940-02-11
B35: 35404050446 | C35: Reijo | D35: Bauman | E35: mees | F35: 1954-04-05
B36: 48007150516 | C36: Erna | D36: Eek | E36: naine | F36: 1980-07-15
B37: 44311270496 | C37: Vilma | D37: Eesmaa | E37: naine | F37: 1943-11-27
B38: 37002030149 | C38: Kristjan | D38: Jürimäe | E38: mees | F38: 1970-02-03
B39: 34906210936 | C39: Jaan | D39: Kaasik | E39: mees | F39: 1949-06-21
B40: 48210210529 | C40: Saima | D40: Kukk | E40: naine | F40: 1982-10-21
B41: 33907250511 | C41: Riho | D41: Kuusk | E41: mees | F41: 1939-07-25
B42: 37906080465 | C42: Kristjan | D42: Mägi | E42: mees | F42: 1979-06-08
B43: 37708220891 | C43: Leida | D43: Nõmmik | E43: mees | F43: 1977-08-22
B44: 35001130124 | C44: Aarne | D44: Oks | E44: mees | F44: 1950-01-13
B53: Arvutite müük | D53: Valemites nimed | G53: käibe- maksu % | H53: 0.18
B55: Kuupäev | C55: Müüja | D55: Mark | E55: Arv | F55: Hind | G55: Maksu- mus k-ga | H55: käibe- maks | I55: Maksu- mus k-ta
B56: 2013-01-02 | C56: Kukk | D56: Ekstra | E56: 2 | F56: =VLOOKUP(Mark, Arvutid_N[], 5, 0) -> 270 | G56: =Hind * Arv -> 540 | H56: =maks_kga * k_pr / (1 + k_pr) -> 82.37288136 | I56: =maks_kga - k_maks -> 457.6271186
B57: 2013-01-02 | C57: Kukk | D57: Tetris | E57: 5 | F57: =VLOOKUP(Mark, Arvutid_N[], 5, 0) -> 240 | G57: 1200 | H57: 183.0508475 | I57: 1016.949153
B58: 2013-01-04 | C58: Agur | D58: Balrog | E58: 3 | F58: =VLOOKUP(Mark, Arvutid_N[], 5, 0) -> 320 | G58: 960 | H58: 146.440678 | I58: 813.559322
B59: 2013-01-04 | C59: Kaasik | D59: Aura | E59: 1 | F59: =VLOOKUP(Mark, Arvutid_N[], 5, 0) -> 380 | G59: 380 | H59: 57.96610169 | I59: 322.0338983
B60: 2013-01-04 | C60: Eek | D60: Aragorn | E60: 2 | F60: =VLOOKUP(Mark, Arvutid_N[], 5, 0) -> 380 | G60: 760 | H60: 115.9322034 | I60: 644.0677966
B61: 2013-01-05 | C61: Nõmmik | D61: Balrog | E61: 2 | F61: =VLOOKUP(Mark, Arvutid_N[], 5, 0) -> 320 | G61: 640 | H61: 97.62711864 | I61: 542.3728814
B62: 2013-01-06 | C62: Mägi | D62: Frodo | E62: 1 | F62: =VLOOKUP(Mark, Arvutid_N[], 5, 0) -> 730 | G62: 730 | H62: 111.3559322 | I62: 618.6440678
B63: 2013-01-07 | C63: Kukk | D63: Elsa | E63: 3 | F63: =VLOOKUP(Mark, Arvutid_N[], 5, 0) -> 540 | G63: 1620 | H63: 247.1186441 | I63: 1372.881356
B64: 2013-01-09 | C64: Kukk | D64: Ekstra | E64: 1 | F64: =VLOOKUP(Mark, Arvutid_N[], 5, 0) -> 270 | G64: 270 | H64: 41.18644068 | I64: 228.8135593
B65: 2013-01-09 | C65: Agur | D65: Frodo | E65: 2 | F65: =VLOOKUP(Mark, Arvutid_N[], 5, 0) -> 730 | G65: 1460 | H65: 222.7118644 | I65: 1237.288136
B66: 2013-01-09 | C66: Kukk | D66: Eliisa | E66: 5 | F66: =VLOOKUP(Mark, Arvutid_N[], 5, 0) -> 320 | G66: 1600 | H66: 244.0677966 | I66: 1355.932203
B67: 2013-01-10 | C67: Mägi | D67: Ultra | E67: 2 | F67: =VLOOKUP(Mark, Arvutid_N[], 5, 0) -> 300 | G67: 600 | H67: 91.52542373 | I67: 508.4745763
B68: 2013-01-10 | C68: Nõmmik | D68: Aragorn | E68: 2 | F68: =VLOOKUP(Mark, Arvutid_N[], 5, 0) -> 380 | G68: 760 | H68: 115.9322034 | I68: 644.0677966
B69: 2013-01-11 | C69: Kuusk | D69: Eliisa | E69: 4 | F69: =VLOOKUP(Mark, Arvutid_N[], 5, 0) -> 320 | G69: 1280 | H69: 195.2542373 | I69: 1084.745763
B70: 2013-01-11 | C70: Kukk | D70: Aura | E70: 2 | F70: =VLOOKUP(Mark, Arvutid_N[], 5, 0) -> 380 | G70: 760 | H70: 115.9322034 | I70: 644.0677966
B71: Total | E71: =SUBTOTAL(109,[Arv]) -> 37 | G71: =SUBTOTAL(109,[Maksu- mus k-ga]) -> 13560 | H71: =SUBTOTAL(109,[käibe- maks]) -> 2068.474576 | I71: =SUBTOTAL(109,[Maksu- mus k-ta]) -> 11491.52542

Sheet Tab_Str_2
D1: veeb | E1: Klipp Tabelite tüüpstruktuur
B14: Arvutid
B16: Mark | C16: Protsessor | D16: Mälu, MB | E16: Ketas,GB | F16: Hind, € | G16: ...
B17: Aragorn | C17: Pent 4; 3,0 | D17: 512 | E17: 160 | F17: 380
B18: Aura | C18: AMD 64; 3,0 | D18: 512 | E18: 160 | F18: 380
B19: Balrog | C19: Pent 4; 3,0 | D19: 512 | E19: 160 | F19: 320
B20: Ekstra | C20: AMD S; 2,8 | D20: 256 | E20: 80 | F20: 270
B21: Eliisa | C21: AMD S; 3,0 | D21: 512 | E21: 160 | F21: 320
B22: Elsa | C22: Pent 4; 3,2 | D22: 512 | E22: 160 | F22: 540
B23: Frodo | C23: AMD 64; 3,8 | D23: 1024 | E23: 320 | F23: 730
B24: Futura | C24: AMD 64; 3,5 | D24: 512 | E24: 160 | F24: 380
B25: Polaris | C25: Intel C; 2,5 | D25: 256 | E25: 80 | F25: 220
B26: Sambo | C26: Pent 4; 3,0 | D26: 512 | E26: 160 | F26: 450
B27: Super | C27: AMD 64; 4,0 | D27: 2048 | E27: 320 | F27: 830
B28: Tetris | C28: AMD S; 2,6 | D28: 256 | E28: 40 | F28: 240
B29: Ultra | C29: Intel C; 3,0 | D29: 512 | E29: 160 | F29: 300
B31: Töötajad
B33: Isikukood | C33: Eesnimi | D33: Perenimi | E33: Sugu | F33: Sünniaeg | G33: ...
B34: 34002110722 | C34: Karl | D34: Agur | E34: mees | F34: 1940-02-11
B35: 35404050446 | C35: Reijo | D35: Bauman | E35: mees | F35: 1954-04-05
B36: 48007150516 | C36: Erna | D36: Eek | E36: naine | F36: 1980-07-15
B37: 44311270496 | C37: Vilma | D37: Eesmaa | E37: naine | F37: 1943-11-27
B38: 37002030149 | C38: Kristjan | D38: Jürimäe | E38: mees | F38: 1970-02-03
B39: 34906210936 | C39: Jaan | D39: Kaasik | E39: mees | F39: 1949-06-21
B40: 48210210529 | C40: Saima | D40: Kukk | E40: naine | F40: 1982-10-21
B41: 33907250511 | C41: Riho | D41: Kuusk | E41: mees | F41: 1939-07-25
B42: 37906080465 | C42: Kristjan | D42: Mägi | E42: mees | F42: 1979-06-08
B43: 37708220891 | C43: Leida | D43: Nõmmik | E43: mees | F43: 1977-08-22
B44: 35001130124 | C44: Aarne | D44: Oks | E44: mees | F44: 1950-01-13
B53: Arvutite müük | D53: Valemites tulpade päised | G53: käibe- maksu % | H53: 0.18
B55: Kuupäev | C55: Müüja | D55: Mark | E55: Arv | F55: Hind | G55: Maks_kga | H55: käibemaks | I55: Maksu- mus k-ta
B56: 2013-01-02 | C56: Kukk | D56: Ekstra | E56: 2 | F56: =VLOOKUP(A_müük_P[[#This Row],[Mark]], Arvutid_P[], 5, 0) -> 270 | G56: =A_müük_P[[#This Row],[Hind]]*A_müük_P[[#This Row],[Arv]] -> 540 | H56: =A_müük_P[[#This Row],[Maks_kga]] * k_pr / (1 + k_pr) -> 82.37288136 | I56: =A_müük_P[[#This Row],[Maks_kga]] - A_müük_P[[#This Row],[käibemaks]] -> 457.6271186
B57: 2013-01-02 | C57: Kukk | D57: Tetris | E57: 5 | F57: =VLOOKUP(A_müük_P[[#This Row],[Mark]], Arvutid_P[], 5, 0) -> 240 | G57: =A_müük_P[[#This Row],[Hind]]*A_müük_P[[#This Row],[Arv]] -> 1200 | H57: =A_müük_P[[#This Row],[Maks_kga]] * k_pr / (1 + k_pr) -> 183.0508475 | I57: =A_müük_P[[#This Row],[Maks_kga]] - A_müük_P[[#This Row],[käibemaks]] -> 1016.949153
B58: 2013-01-04 | C58: Agur | D58: Balrog | E58: 3 | F58: =VLOOKUP(A_müük_P[[#This Row],[Mark]], Arvutid_P[], 5, 0) -> 320 | G58: =A_müük_P[[#This Row],[Hind]]*A_müük_P[[#This Row],[Arv]] -> 960 | H58: =A_müük_P[[#This Row],[Maks_kga]] * k_pr / (1 + k_pr) -> 146.440678 | I58: =A_müük_P[[#This Row],[Maks_kga]] - A_müük_P[[#This Row],[käibemaks]] -> 813.559322
B59: 2013-01-04 | C59: Kaasik | D59: Aura | E59: 1 | F59: =VLOOKUP(A_müük_P[[#This Row],[Mark]], Arvutid_P[], 5, 0) -> 380 | G59: =A_müük_P[[#This Row],[Hind]]*A_müük_P[[#This Row],[Arv]] -> 380 | H59: =A_müük_P[[#This Row],[Maks_kga]] * k_pr / (1 + k_pr) -> 57.96610169 | I59: =A_müük_P[[#This Row],[Maks_kga]] - A_müük_P[[#This Row],[käibemaks]] -> 322.0338983
B60: 2013-01-04 | C60: Eek | D60: Aragorn | E60: 2 | F60: =VLOOKUP(A_müük_P[[#This Row],[Mark]], Arvutid_P[], 5, 0) -> 380 | G60: =A_müük_P[[#This Row],[Hind]]*A_müük_P[[#This Row],[Arv]] -> 760 | H60: =A_müük_P[[#This Row],[Maks_kga]] * k_pr / (1 + k_pr) -> 115.9322034 | I60: =A_müük_P[[#This Row],[Maks_kga]] - A_müük_P[[#This Row],[käibemaks]] -> 644.0677966
B61: 2013-01-05 | C61: Nõmmik | D61: Balrog | E61: 2 | F61: =VLOOKUP(A_müük_P[[#This Row],[Mark]], Arvutid_P[], 5, 0) -> 320 | G61: =A_müük_P[[#This Row],[Hind]]*A_müük_P[[#This Row],[Arv]] -> 640 | H61: =A_müük_P[[#This Row],[Maks_kga]] * k_pr / (1 + k_pr) -> 97.62711864 | I61: =A_müük_P[[#This Row],[Maks_kga]] - A_müük_P[[#This Row],[käibemaks]] -> 542.3728814
B62: 2013-01-06 | C62: Mägi | D62: Frodo | E62: 1 | F62: =VLOOKUP(A_müük_P[[#This Row],[Mark]], Arvutid_P[], 5, 0) -> 730 | G62: =A_müük_P[[#This Row],[Hind]]*A_müük_P[[#This Row],[Arv]] -> 730 | H62: =A_müük_P[[#This Row],[Maks_kga]] * k_pr / (1 + k_pr) -> 111.3559322 | I62: =A_müük_P[[#This Row],[Maks_kga]] - A_müük_P[[#This Row],[käibemaks]] -> 618.6440678
B63: 2013-01-07 | C63: Kuusk | D63: Elsa | E63: 3 | F63: =VLOOKUP(A_müük_P[[#This Row],[Mark]], Arvutid_P[], 5, 0) -> 540 | G63: =A_müük_P[[#This Row],[Hind]]*A_müük_P[[#This Row],[Arv]] -> 1620 | H63: =A_müük_P[[#This Row],[Maks_kga]] * k_pr / (1 + k_pr) -> 247.1186441 | I63: =A_müük_P[[#This Row],[Maks_kga]] - A_müük_P[[#This Row],[käibemaks]] -> 1372.881356
B64: 2013-01-09 | C64: Kukk | D64: Ekstra | E64: 1 | F64: =VLOOKUP(A_müük_P[[#This Row],[Mark]], Arvutid_P[], 5, 0) -> 270 | G64: =A_müük_P[[#This Row],[Hind]]*A_müük_P[[#This Row],[Arv]] -> 270 | H64: =A_müük_P[[#This Row],[Maks_kga]] * k_pr / (1 + k_pr) -> 41.18644068 | I64: =A_müük_P[[#This Row],[Maks_kga]] - A_müük_P[[#This Row],[käibemaks]] -> 228.8135593
B65: 2013-01-09 | C65: Agur | D65: Frodo | E65: 2 | F65: =VLOOKUP(A_müük_P[[#This Row],[Mark]], Arvutid_P[], 5, 0) -> 730 | G65: =A_müük_P[[#This Row],[Hind]]*A_müük_P[[#This Row],[Arv]] -> 1460 | H65: =A_müük_P[[#This Row],[Maks_kga]] * k_pr / (1 + k_pr) -> 222.7118644 | I65: =A_müük_P[[#This Row],[Maks_kga]] - A_müük_P[[#This Row],[käibemaks]] -> 1237.288136
B66: 2013-01-09 | C66: Kukk | D66: Eliisa | E66: 5 | F66: =VLOOKUP(A_müük_P[[#This Row],[Mark]], Arvutid_P[], 5, 0) -> 320 | G66: =A_müük_P[[#This Row],[Hind]]*A_müük_P[[#This Row],[Arv]] -> 1600 | H66: =A_müük_P[[#This Row],[Maks_kga]] * k_pr / (1 + k_pr) -> 244.0677966 | I66: =A_müük_P[[#This Row],[Maks_kga]] - A_müük_P[[#This Row],[käibemaks]] -> 1355.932203
B67: 2013-01-10 | C67: Mägi | D67: Ultra | E67: 2 | F67: =VLOOKUP(A_müük_P[[#This Row],[Mark]], Arvutid_P[], 5, 0) -> 300 | G67: =A_müük_P[[#This Row],[Hind]]*A_müük_P[[#This Row],[Arv]] -> 600 | H67: =A_müük_P[[#This Row],[Maks_kga]] * k_pr / (1 + k_pr) -> 91.52542373 | I67: =A_müük_P[[#This Row],[Maks_kga]] - A_müük_P[[#This Row],[käibemaks]] -> 508.4745763
B68: 2013-01-10 | C68: Nõmmik | D68: Aragorn | E68: 2 | F68: =VLOOKUP(A_müük_P[[#This Row],[Mark]], Arvutid_P[], 5, 0) -> 380 | G68: =A_müük_P[[#This Row],[Hind]]*A_müük_P[[#This Row],[Arv]] -> 760 | H68: =A_müük_P[[#This Row],[Maks_kga]] * k_pr / (1 + k_pr) -> 115.9322034 | I68: =A_müük_P[[#This Row],[Maks_kga]] - A_müük_P[[#This Row],[käibemaks]] -> 644.0677966
B69: 2013-01-11 | C69: Kuusk | D69: Eliisa | E69: 4 | F69: =VLOOKUP(A_müük_P[[#This Row],[Mark]], Arvutid_P[], 5, 0) -> 320 | G69: =A_müük_P[[#This Row],[Hind]]*A_müük_P[[#This Row],[Arv]] -> 1280 | H69: =A_müük_P[[#This Row],[Maks_kga]] * k_pr / (1 + k_pr) -> 195.2542373 | I69: =A_müük_P[[#This Row],[Maks_kga]] - A_müük_P[[#This Row],[käibemaks]] -> 1084.745763
B70: 2013-01-11 | C70: Kukk | D70: Aura | E70: 2 | F70: =VLOOKUP(A_müük_P[[#This Row],[Mark]], Arvutid_P[], 5, 0) -> 380 | G70: =A_müük_P[[#This Row],[Hind]]*A_müük_P[[#This Row],[Arv]] -> 760 | H70: =A_müük_P[[#This Row],[Maks_kga]] * k_pr / (1 + k_pr) -> 115.9322034 | I70: =A_müük_P[[#This Row],[Maks_kga]] - A_müük_P[[#This Row],[käibemaks]] -> 644.0677966
B71: Total | E71: =SUBTOTAL(109,[Arv]) -> 37 | G71: =SUBTOTAL(109,[Maks_kga]) -> 13560 | H71: =SUBTOTAL(109,[käibemaks]) -> 2068.474576 | I71: =SUBTOTAL(109,[Maksu- mus k-ta]) -> 11491.52542

Sheet Aadressid
B10: R1C1 - aadressid
H13: 13
K16: 21
I17: Kopeerige valem paremale, alla ja diagonaalis. Vaadake aadresse
I19: =H13 + 100 -> 113 | J19: =I13 + 100 -> 100 | K19: 100 | L19: 100
I20: =H14 + 100 -> 100
I21: 100
I22: 100 | L22: =K16 + 100 -> 121
I25: =$H$13+100 -> 113 | J25: =$H$13+100 -> 113 | K25: 113 | L25: 113
I26: =$H$13+100 -> 113
I27: 113
I28: 113 | L28: =$H$13+100 -> 113
I30: =H$13 + $H13 -> 26 | J30: =I$13 + $H13 -> 13 | K30: 13 | L30: 13
I31: =H$13 + $H14 -> 13
I32: 13
I33: 13 | L33: =K$13 + $H16 -> 0

Sheet Laed_A
D1: otsimine | E1: valemite kopeerimine | F1: Klipp "Aadressid ja nimed" | H1: veeb
B3: Lagede värvimine I. Aadressid
B4: Viitamine teise lehe lahtritele
B5: =Aadressid!H13 + 100 -> 113
B6: värvi margi valimiseks dünaamiline kopeerimine
B7: värv | C7: hind, €/ltr | D7: kulu, ltr/m2 | F7: tariif, €/m2
B8: =Värvid!B15 -> VL_30 | C8: =VLOOKUP(B8, Värvid!B6:E16, 3, 0) -> 3 | D8: =VLOOKUP(B8, Värvid!B6:E16, 2, 0) -> 0.47 | F8: 1.2
B10: ruum | C10: pikkus | D10: laius | E10: pindala | F10: värvi kogus | G10: värvi maksumus | H10: tõõtasu | I10: kulud kokku
B11: R_01 | C11: 5 | D11: 4 | E11: =C11 * D11 -> 20 | F11: =$D$8 * E11 -> 9.4 | G11: =$C$8 * F11 -> 28.2 | H11: =$F$8 * E11 -> 24 | I11: =G11+ H11 -> 52.2
B12: R_02 | C12: 7.2 | D12: 4.8 | E12: =C12 * D12 -> 34.56 | F12: =$D$8 * E12 -> 16.2432 | G12: =$C$8 * F12 -> 48.7296 | H12: =$F$8 * E12 -> 41.472 | I12: =G12+ H12 -> 90.2016
B13: R_03 | C13: 6.27 | D13: 5.23 | E13: 32.7921 | F13: 15.412287 | G13: 46.236861 | H13: 39.35052 | I13: 85.587381
B14: R_03_1 | C14: 5.2 | D14: 4.12 | E14: =C14 * D14 -> 21.424 | F14: =$D$8 * E14 -> 10.06928 | G14: 30.20784 | H14: 25.7088 | I14: 55.91664
B15: R_04 | C15: 4.2 | D15: 3.9 | E15: 16.38 | F15: 7.6986 | G15: 23.0958 | H15: 19.656 | I15: 42.7518
B16: R_05 | C16: 4.6 | D16: 4.3 | E16: 19.78 | F16: 9.2966 | G16: 27.8898 | H16: 23.736 | I16: 51.6258
B17: R_06 | C17: 7.85 | D17: 6.41 | E17: 50.3185 | F17: 23.649695 | G17: 70.949085 | H17: 60.3822 | I17: 131.331285
B18: R_07 | C18: 8.4 | D18: 5.82 | E18: 48.888 | F18: 22.97736 | G18: 68.93208 | H18: 58.6656 | I18: 127.59768
B19: R_08 | C19: 7.77 | D19: 5.55 | E19: 43.1235 | F19: 20.268045 | G19: 60.804135 | H19: 51.7482 | I19: 112.552335
D21: Kokku: | E21: =SUM(E11:E20) -> 287.2661 | F21: =SUM(F11:F20) -> 135.015067 | G21: =SUM(G11:G20) -> 405.045201 | H21: =SUM(H11:H20) -> 344.71932 | I21: =SUM(I11:I20) -> 749.764521

Sheet Värvid
B3: Värvid
B5: V_mark | C5: kulu | D5: hind | E5: valmistaja | F5: ...
B6: VL_01 | C6: 0.52 | D6: 3.05 | E6: JukuColor
B7: VL_02 | C7: 0.48 | D7: 3.37 | E7: JukuColor
B8: VL_05 | C8: 0.65 | D8: 4.06 | E8: Sadolin
B9: VL_06 | C9: 0.45 | D9: 3.17 | E9: JukuColor
B10: VL_09 | C10: 0.55 | D10: 4.02 | E10: JukuColor
B11: VL_11 | C11: 0.48 | D11: 3.17 | E11: Sadolin
B12: VL_13 | C12: 0.52 | D12: 2.76 | E12: JukuColor
B13: VL_21 | C13: 0.39 | D13: 3.96 | E13: VivaColor
B14: VL_25 | C14: 0.42 | D14: 3.13 | E14: JukuColor
B15: VL_30 | C15: 0.47 | D15: 3 | E15: VivaColor
B16: VL_32 | C16: 0.55 | D16: 6.31 | E16: JukuColor

Sheet Fun_XA
B3: Funktsioonide tabuleerimine ja graafikud. Variant 1
B5: algus | C5: lõpp | D5: jaotisi | E5: samm | F5: p | H5: ymin | I5: ymax | J5: zkesk
B6: -10 | C6: 10 | D6: 20 | E6: =(C6-B6)/D6 -> 1 | F6: 2 | H6: =MIN(C9:C29) -> -2.938371722 | I6: =MAX(C9:C29) -> 2.72789228 | J6: =AVERAGE(D9:D29) -> -0.2110010223
B8: x | C8: y | D8: z
B9: =B6 -> -10 | C9: =3*SIN(B9+2)*COS(B9/2) -> -0.8419305673 | D9: =IF(B9<=$F$6, 5*COS(2*B9-3), 3*SIN(B9+1)) -> -2.664165102
B10: =B9+$E$6 -> -9 | C10: =3*SIN(B10+2)*COS(B10/2) -> 0.4154700459 | D10: =IF(B10<=$F$6, 5*COS(2*B10-3), 3*SIN(B10+1)) -> -2.738646301
B11: =B10+$E$6 -> -8 | C11: -0.5479144739 | D11: 4.943523091
B12: -7 | C12: -2.693973149 | D12: -1.37581669
B13: -6 | C13: -2.247686375 | D13: -3.798439564
B14: -5 | C14: 0.3391721804 | D14: 4.537233907
B15: -4 | C15: 1.135203743 | D15: 0.02212848994
B16: -3 | C16: -0.1785699082 | D16: -4.555651309
B17: -2 | C17: 0 | D17: 3.769511272
B18: -1 | C18: 2.215380788 | D18: 1.418310927
B19: 0 | C19: 2.72789228 | D19: -4.949962483
B20: 1 | C20: 0.3715333746 | D20: 2.701511529
B21: 2 | C21: -1.2267064 | D21: 2.701511529
B22: 3 | C22: -0.2034948594 | D22: -2.270407486
B23: 4 | C23: 0.348833627 | D23: -2.876772824
B24: 5 | C24: -1.579021857 | D24: -0.8382464946
B25: 6 | C25: -2.938371722 | D25: 1.970959796
B26: 7 | C26: -1.157793334 | D26: 2.96807474
B27: 8 | C27: 1.066787786 | D27: 1.236355456
B28: 9 | C28: 0.632381205 | D28: -1.632063333
B29: 10 | C29: -0.4566163397 | D29: -2.99997062

Sheet Fun_XY_A1
B2: Kahemuutuja funktsiooni tabel ja graafik. Aadressid.
B4: ax | C4: bx | D4: nx | E4: hx | F4: a | G4: ay | H4: by | I4: ny | J4: hy
B5: 0 | C5: 7 | D5: 10 | E5: =(C5-B5)/D5 -> 0.7 | F5: 5 | G5: 0 | H5: 14 | I5: 10 | J5: =(H5-G5)/I5 -> 1.4
C8: =B5 -> 0 | D8: =C8+$E$5 -> 0.7 | E8: =D8+$E$5 -> 1.4 | F8: 2.1 | G8: 2.8 | H8: 3.5 | I8: 4.2 | J8: 4.9 | K8: 5.6 | L8: 6.3 | M8: 7
B9: =G5 -> 0 | C9: =$F$5*SIN(C$8)*COS($B9) -> 0 | D9: =$F$5*SIN(D$8)*COS($B9) -> 3.221088436 | E9: 4.92724865 | F9: 4.316046833 | G9: 1.674940751 | H9: -1.753916138 | I9: -4.357878862 | J9: -4.912263063 | K9: -3.156333189 | L9: 0.08406950242 | M9: 3.284932994
B10: =B9+$J$5 -> 1.4 | C10: =$F$5*SIN(C$8)*COS($B10) -> 0 | D10: 0.5474791985 | E10: 0.8374703754 | F10: 0.7335861489 | G10: 0.2846848939 | H10: -0.2981081149 | I10: -0.7406962193 | J10: -0.834923318 | K10: -0.5364729342 | L10: 0.01428905313 | M10: 0.5583306755
B11: =B10+$J$5 -> 2.8 | C11: 0 | D11: -3.034981486 | E11: -4.642563756 | F11: -4.06667575 | G11: -1.578166595 | H11: 1.652578969 | I11: 4.106090822 | J11: 4.628444001 | K11: 2.973967646 | L11: -0.07921216335 | M11: -3.095137254
B12: 4.2 | C12: 0 | D12: -1.579173462 | E12: -2.41563697 | F12: -2.115988665 | G12: -0.8211578282 | H12: 0.8598763666 | I12: 2.13649727 | J12: 2.408290124 | K12: 1.547426502 | L12: -0.04121598331 | M12: -1.610473947
B13: 5.6 | C13: 0 | D13: 2.498166283 | E13: 3.821405928 | F13: 3.347378654 | G13: 1.299026895 | H13: -1.360277511 | I13: -3.379822148 | J13: -3.809783618 | K13: -2.447944323 | L13: 0.0652014375 | M13: 2.547681943
B14: 7 | C14: 0 | D14: 2.428385833 | E14: 3.714663865 | F14: 3.253877437 | G14: 1.262741608 | H14: -1.322281331 | I14: -3.285414698 | J14: -3.703366197 | K14: -2.379566707 | L14: 0.0633801874 | M14: 2.476518389
B15: 8.4 | C15: 0 | D15: -1.672674679 | E15: -2.55866432 | F15: -2.241274151 | G15: -0.8697777282 | H15: 0.910788751 | I15: 2.262997049 | J15: 2.550882475 | K15: 1.639048014 | L15: -0.04365633876 | M15: -1.705828433
B16: 9.8 | C16: 0 | D16: -2.996985306 | E16: -4.584441593 | F16: -4.015763365 | G16: -1.558408879 | H16: 1.631889654 | I16: 4.054684984 | J16: 4.570498609 | K16: 2.936735323 | L16: -0.07822047374 | M16: -3.056387959
B17: 11.2 | C17: 0 | D17: 0.6538966193 | E17: 1.000255441 | F17: 0.8761784996 | G17: 0.340021119 | H17: -0.3560535068 | I17: -0.8846706049 | J17: -0.9972132942 | K17: -0.6407509893 | L17: 0.01706651789 | M17: 0.666857375
B18: 12.6 | C18: 0 | D18: 3.219267186 | E18: 4.924462712 | F18: 4.313606478 | G18: 1.673993715 | H18: -1.752924449 | I18: -4.355414854 | J18: -4.909485598 | K18: -3.154548553 | L18: 0.08402196831 | M18: 3.283075645
B19: 14 | C19: 0 | D19: 0.4404426724 | E19: 0.6737382738 | F19: 0.5901642376 | G19: 0.2290267389 | H19: -0.2398256137 | I19: -0.5958842329 | J19: -0.6716891864 | K19: -0.4315882201 | L19: 0.0114954299 | M19: =$F$5*SIN(M$8)*COS($B19) -> 0.4491725995

Sheet Kaubad_A
D1: veeb
B2: Kaupade allahindlus. Suht-, absoluut- ja sega-aadressid
D4: Allahinnatud | G4: 0.07
B5: Kaup | C5: Alghind | D5: Mai | E5: Juuni | F5: Juuli
B6: Kaup1 | C6: 1225 | D6: =C6-C6*$G$4 -> 1139.25 | E6: =D6-D6*$G$4 -> 1059.5025 | F6: 985.337325
B7: Kaup2 | C7: 500 | D7: =C7-C7*$G$4 -> 465 | E7: 432.45 | F7: 402.1785
B8: Kaup3 | C8: 869 | D8: 808.17 | E8: 751.5981 | F8: 698.986233
B9: Kaup4 | C9: 4589 | D9: 4267.77 | E9: 3969.0261 | F9: 3691.194273
B10: Kaup5 | C10: 12548 | D10: 11669.64 | E10: 10852.7652 | F10: 10093.07164
B11: Kaup6 | C11: 369 | D11: 343.17 | E11: 319.1481 | F11: 296.807733
B12: Kaup7 | C12: 147 | D12: 136.71 | E12: 127.1403 | F12: 118.240479
B13: Kaup8 | C13: 125 | D13: 116.25 | E13: 108.1125 | F13: 100.544625
B14: Kaup9 | C14: 3695 | D14: 3436.35 | E14: 3195.8055 | F14: 2972.099115
B15: Kaup10 | C15: 5896 | D15: 5483.28 | E15: 5099.4504 | F15: 4742.488872
D18: Allahinnatud
D19: 0.05 | E19: 0.1 | F19: 0.15
B20: Kaup | C20: Alghind | D20: Mai | E20: Juuni | F20: Juuli
B21: Kaup1 | C21: 1225 | D21: =C21-D$19*C21 -> 1163.75 | E21: =D21-E$19*D21 -> 1047.375 | F21: 890.26875
B22: Kaup2 | C22: 500 | D22: =C22-D$19*C22 -> 475 | E22: 427.5 | F22: 363.375
B23: Kaup3 | C23: 869 | D23: 825.55 | E23: 742.995 | F23: 631.54575
B24: Kaup4 | C24: 4589 | D24: 4359.55 | E24: 3923.595 | F24: 3335.05575
B25: Kaup5 | C25: 12548 | D25: 11920.6 | E25: 10728.54 | F25: 9119.259
B26: Kaup6 | C26: 369 | D26: 350.55 | E26: 315.495 | F26: 268.17075
B27: Kaup7 | C27: 147 | D27: 139.65 | E27: 125.685 | F27: 106.83225
B28: Kaup8 | C28: 125 | D28: 118.75 | E28: 106.875 | F28: 90.84375
B29: Kaup9 | C29: 3695 | D29: 3510.25 | E29: 3159.225 | F29: 2685.34125
B30: Kaup10 | C30: 5896 | D30: 5601.2 | E30: 5041.08 | F30: 4284.918
D33: Allahinnatud
D34: 0.05 | E34: 0.1 | F34: 0.15
B35: Kaup | C35: Alghind | D35: Mai | E35: Juuni | F35: Juuli
B36: Kaup1 | C36: 1225 | D36: =$C36-D$34*$C36 -> 1163.75 | E36: =$C36-E$34*$C36 -> 1102.5 | F36: 1041.25
B37: Kaup2 | C37: 500 | D37: =$C37-D$34*$C37 -> 475 | E37: 450 | F37: 425
B38: Kaup3 | C38: 869 | D38: 825.55 | E38: 782.1 | F38: 738.65
B39: Kaup4 | C39: 4589 | D39: 4359.55 | E39: 4130.1 | F39: 3900.65
B40: Kaup5 | C40: 12548 | D40: 11920.6 | E40: 11293.2 | F40: 10665.8
B41: Kaup6 | C41: 369 | D41: 350.55 | E41: 332.1 | F41: 313.65
B42: Kaup7 | C42: 147 | D42: 139.65 | E42: 132.3 | F42: 124.95
B43: Kaup8 | C43: 125 | D43: 118.75 | E43: 112.5 | F43: 106.25
B44: Kaup9 | C44: 3695 | D44: 3510.25 | E44: 3325.5 | F44: 3140.75
B45: Kaup10 | C45: 5896 | D45: 5601.2 | E45: 5306.4 | F45: 5011.6

Sheet Nimed
D1: veeb | E1: Klipp "Aadressid ja nimed" | G1: Klipp " Nimede loomine" | H1: Klipp "Nimede loomise ja kasutamise üldpõhimõtted"
J16: a | K16: b | L16: h | M16: S | N16: P
J17: 6 | K17: 4 | L17: 3 | M17: =a*b -> 24 | N17: =2*(a + b) -> 20
J18: 8.4 | K18: 6.32 | L18: 2.8 | M18: 53.088 | N18: 29.44
J19: 7.23 | K19: 4.7 | L19: 3.2 | M19: 33.981 | N19: 23.86
J20: 7 | K20: 5 | L20: 3.14 | M20: 35 | N20: 24
J21: 8 | K21: 6 | L21: 3 | M21: 48 | N21: 28
J22: 6.25 | K22: 4.33 | L22: 3 | M22: 27.0625 | N22: 21.16
J23: 4.7 | K23: 4.3 | L23: 3 | M23: 20.21 | N23: 18
M25: =SUM(S) -> 241.3415 | N25: =SUM(P) -> 164.46

Sheet Laed_N
D1: validee- rimine | E1: otsimine | F1: valemite kopeerimine | G1: Klipp "Aadressid ja nimed" | I1: Diagramm | J1: veeb
B3: Lagede värvimine II. Nimed | E3: Diagrammid
B5: värv | C5: hind, eu/ltr | D5: kulu, ltr/m2 | F5: tariif, eu/m2
B6: VL_13 | C6: =VLOOKUP(värv, Värvid[], 3, 0) -> 2.76 | D6: =VLOOKUP(värv, Värvid[], 2, 0) -> 0.52 | F6: 1.4
B7: värv | C7: hind | D7: kulu | F7: tariif
B9: ruum | C9: pikkus | D9: laius | E9: pindala | F9: v_kogus | G9: v_maks | H9: töötasu | I9: Kokku
B10: R_01 | C10: 5 | D10: 4 | E10: =pikkus * laius -> 20 | F10: =kulu * pindala -> 10.4 | G10: =hind * v_kogus -> 28.704 | H10: =tariif * pindala -> 28 | I10: =v_maks + töötasu -> 56.704
B11: R_02 | C11: 7.2 | D11: 4.8 | E11: 34.56 | F11: 17.9712 | G11: 49.600512 | H11: 48.384 | I11: 97.984512
B12: R_03 | C12: 6.27 | D12: 5.23 | E12: 32.7921 | F12: 17.051892 | G12: 47.06322192 | H12: 45.90894 | I12: 92.97216192
B13: R_03_1 | C13: 7.4 | D13: 6.33 | E13: 46.842 | F13: 24.35784 | G13: 67.2276384 | H13: 65.5788 | I13: 132.8064384
B14: R_05 | C14: 4.6 | D14: 4.3 | E14: 19.78 | F14: 10.2856 | G14: 28.388256 | H14: 27.692 | I14: 56.080256
B15: R_06 | C15: 7.85 | D15: 6.41 | E15: 50.3185 | F15: 26.16562 | G15: 72.2171112 | H15: 70.4459 | I15: 142.6630112
B16: R_07 | C16: 8 | D16: 7 | E16: 56 | F16: 29.12 | G16: 80.3712 | H16: 78.4 | I16: 158.7712
D18: Kokku: | E18: =SUM(E10:E16) -> 260.2926 | F18: =SUM(F10:F16) -> 135.352152 | G18: =SUM(G10:G16) -> 373.5719395 | H18: =SUM(H10:H16) -> 364.40964 | I18: =SUM(I10:I16) -> 737.9815795

Sheet Table_1
D1: Klipp "Tabeli muutmine List-objektiks"
J17: Proovige muuta toodud tabel Table-objektiks
J19: ruum | K19: a | L19: b | M19: pind | N19: hind | O19: maksumus
J20: R01 | K20: 5 | L20: 4 | M20: =a * b -> 20 | N20: 150 | O20: =hind * pind -> 3000
J21: R02 | K21: 6 | L21: 5 | M21: 30 | N21: 200 | O21: 6000
J22: R03 | K22: 7.5 | L22: 6.2 | M22: 46.5 | N22: 120 | O22: 5580
J23: R04 | K23: 5.4 | L23: 4.5 | M23: 24.3 | N23: 150 | O23: 3645
J24: R05 | K24: 4 | L24: 3 | M24: 12 | N24: 120 | O24: 1440
J25: R06 | K25: 7 | L25: 5 | M25: 35 | N25: 150 | O25: 5250
J26: Total | M26: =SUBTOTAL(109,[pind]) -> 167.8 | O26: =SUBTOTAL(109,[maksumus]) -> 24915
J45: ruum | K45: a | L45: b | M45: pind | N45: hind | O45: maksumus
J46: R01 | K46: 5 | L46: 4 | M46: =[a]*[b] -> 20 | N46: 150 | O46: =Table23[[#This Row],[hind]] * Table23[[#This Row],[pind]] -> 3000
J47: R02 | K47: 6 | L47: 5 | M47: =[a]*[b] -> 30 | N47: 200 | O47: =Table23[[#This Row],[hind]] * Table23[[#This Row],[pind]] -> 6000
J48: R03 | K48: 7.5 | L48: 6.2 | M48: =[a]*[b] -> 46.5 | N48: 120 | O48: =Table23[[#This Row],[hind]] * Table23[[#This Row],[pind]] -> 5580
J49: R04 | K49: 5.4 | L49: 4.5 | M49: =[a]*[b] -> 24.3 | N49: 150 | O49: =Table23[[#This Row],[hind]] * Table23[[#This Row],[pind]] -> 3645
J50: R05 | K50: 4 | L50: 3 | M50: =[a]*[b] -> 12 | N50: 120 | O50: =Table23[[#This Row],[hind]] * Table23[[#This Row],[pind]] -> 1440
J51: R06 | K51: 7 | L51: 5 | M51: =[a]*[b] -> 35 | N51: 150 | O51: =Table23[[#This Row],[hind]] * Table23[[#This Row],[pind]] -> 5250
J52: Total | M52: =SUBTOTAL(109,[pind]) -> 167.8 | O52: =SUBTOTAL(109,[maksumus]) -> 24915

Sheet Laed_N (2)
D1: validee- rimine | E1: otsimine | F1: valemite kopeerimine | G1: Klipp "Aadressid ja nimed" | I1: Diagramm | J1: veeb
B3: Lagede värvimine II. Nimed | E3: Diagrammid
B5: värv | C5: hind, €/ltr | D5: kulu, ltr/m2 | F5: tariif, €/m2
B6: VL_11 | C6: =VLOOKUP(värv, Värvid[], 3, 0) -> 3.17 | D6: =VLOOKUP(värv, Värvid[], 2, 0) -> 0.48 | F6: 0.6
B7: värv | C7: hind | D7: kulu
B9: ruum | C9: pikkus | D9: laius | E9: pindala | F9: v_kogus | G9: v_maks | H9: töötasu | I9: Kokku
B10: R_01 | C10: 5 | D10: 4 | E10: =pikkus*laius -> 20 | F10: =kulu*pindala -> 9.6 | G10: =hind*v_kogus -> 30.432 | H10: =tariif*pindala -> 12 | I10: =v_maks+töötasu -> 42.432
B11: R_02 | C11: 7.2 | D11: 4.8 | E11: 34.56 | F11: 16.5888 | G11: 52.586496 | H11: 20.736 | I11: 73.322496
B12: R_03 | C12: 6.27 | D12: 5.23 | E12: 32.7921 | F12: 15.740208 | G12: 49.89645936 | H12: 19.67526 | I12: 69.57171936
B13: R_04 | C13: 7.4 | D13: 6.33 | E13: 46.842 | F13: 22.48416 | G13: 71.2747872 | H13: 28.1052 | I13: 99.3799872
B14: R_05 | C14: 4.6 | D14: 4.3 | E14: 19.78 | F14: 9.4944 | G14: 30.097248 | H14: 11.868 | I14: 41.965248
B15: R_06 | C15: 7.85 | D15: 6.41 | E15: 50.3185 | F15: 24.15288 | G15: 76.5646296 | H15: 30.1911 | I15: 106.7557296
B16: R_07 | C16: 8 | D16: 7 | E16: 56 | F16: 26.88 | G16: 85.2096 | H16: 33.6 | I16: 118.8096
B17: R_08 | C17: 6 | D17: 4 | E17: 24 | F17: 11.52 | G17: 36.5184 | H17: 14.4 | I17: 50.9184
B18: R_09 | C18: 5.3 | D18: 4.1 | E18: =pikkus*laius -> 21.73 | F18: =kulu*pindala -> 10.4304 | G18: =hind*v_kogus -> 33.064368 | H18: =tariif*pindala -> 13.038 | I18: =v_maks+töötasu -> 46.102368
B19: R_10 | C19: 7.2 | D19: 4.6 | E19: =pikkus*laius -> 33.12 | F19: =kulu*pindala -> 15.8976 | G19: =hind*v_kogus -> 50.395392 | H19: =tariif*pindala -> 19.872 | I19: =v_maks+töötasu -> 70.267392
B20: Total | E20: =SUBTOTAL(109,[pindala]) -> 339.1426 | F20: =SUBTOTAL(109,[v_kogus]) -> 162.788448 | G20: =SUBTOTAL(109,[v_maks]) -> 516.0393802 | H20: =SUBTOTAL(109,[töötasu]) -> 203.48556 | I20: =SUBTOTAL(109,[Kokku]) -> 719.5249402

Sheet Laed_N (3)
D1: validee- rimine | E1: otsimine | F1: valemite kopeerimine | G1: Klipp "Aadressid ja nimed" | I1: Diagramm | J1: veeb
B3: Lagede värvimine II. Nimed | E3: Diagrammid
B5: värv | C5: hind, €/ltr | D5: kulu, ltr/m2 | F5: tariif, €/m2
B6: VL_05 | C6: =VLOOKUP(värv, Värvid[], 3, 0) -> 4.06 | D6: =VLOOKUP(värv, Värvid[], 2, 0) -> 0.65 | F6: 0.6
B7: värv | C7: hind | D7: kulu
B9: ruum | C9: pikkus | D9: laius | E9: pindala | F9: v_kogus | G9: v_maks | H9: töötasu | I9: Kokku
B10: R_01 | C10: 5 | D10: 4 | E10: =Table8[[#This Row],[pikkus]]*Table8[[#This Row],[laius]] -> 20 | F10: =kulu*Table8[[#This Row],[pindala]] -> 13 | G10: =hind*[v_kogus] -> 52.78 | H10: =tariif*Table8[[#This Row],[pindala]] -> 12 | I10: =[v_maks]+Table8[[#This Row],[töötasu]] -> 64.78
B11: R_02 | C11: 7.2 | D11: 4.8 | E11: =Table8[[#This Row],[pikkus]]*Table8[[#This Row],[laius]] -> 34.56 | F11: =kulu*Table8[[#This Row],[pindala]] -> 22.464 | G11: =hind*[v_kogus] -> 91.20384 | H11: =tariif*Table8[[#This Row],[pindala]] -> 20.736 | I11: =[v_maks]+Table8[[#This Row],[töötasu]] -> 111.93984
B12: R_03 | C12: 6.27 | D12: 5.23 | E12: =Table8[[#This Row],[pikkus]]*Table8[[#This Row],[laius]] -> 32.7921 | F12: =kulu*Table8[[#This Row],[pindala]] -> 21.314865 | G12: =hind*[v_kogus] -> 86.5383519 | H12: =tariif*Table8[[#This Row],[pindala]] -> 19.67526 | I12: =[v_maks]+Table8[[#This Row],[töötasu]] -> 106.2136119
B13: R_04 | C13: 7.4 | D13: 6.33 | E13: =Table8[[#This Row],[pikkus]]*Table8[[#This Row],[laius]] -> 46.842 | F13: =kulu*Table8[[#This Row],[pindala]] -> 30.4473 | G13: =hind*[v_kogus] -> 123.616038 | H13: =tariif*Table8[[#This Row],[pindala]] -> 28.1052 | I13: =[v_maks]+Table8[[#This Row],[töötasu]] -> 151.721238
B14: R_05 | C14: 4.6 | D14: 4.3 | E14: =Table8[[#This Row],[pikkus]]*Table8[[#This Row],[laius]] -> 19.78 | F14: =kulu*Table8[[#This Row],[pindala]] -> 12.857 | G14: =hind*[v_kogus] -> 52.19942 | H14: =tariif*Table8[[#This Row],[pindala]] -> 11.868 | I14: =[v_maks]+Table8[[#This Row],[töötasu]] -> 64.06742
B15: R_06 | C15: 7.85 | D15: 6.41 | E15: =Table8[[#This Row],[pikkus]]*Table8[[#This Row],[laius]] -> 50.3185 | F15: =kulu*Table8[[#This Row],[pindala]] -> 32.707025 | G15: =hind*[v_kogus] -> 132.7905215 | H15: =tariif*Table8[[#This Row],[pindala]] -> 30.1911 | I15: =[v_maks]+Table8[[#This Row],[töötasu]] -> 162.9816215
B16: R_07 | C16: 8 | D16: 7 | E16: =Table8[[#This Row],[pikkus]]*Table8[[#This Row],[laius]] -> 56 | F16: =kulu*Table8[[#This Row],[pindala]] -> 36.4 | G16: =hind*[v_kogus] -> 147.784 | H16: =tariif*Table8[[#This Row],[pindala]] -> 33.6 | I16: =[v_maks]+Table8[[#This Row],[töötasu]] -> 181.384
B17: Total | E17: =SUBTOTAL(109,[pindala]) -> 260.2926 | F17: =SUBTOTAL(109,[v_kogus]) -> 169.19019 | G17: =SUBTOTAL(109,[v_maks]) -> 686.9121714 | H17: =SUBTOTAL(109,[töötasu]) -> 156.17556 | I17: =SUBTOTAL(109,[Kokku]) -> 843.0877314

Sheet Table_2_1
D1: Valideerimine | E1: Otsimine | F1: Klipp "Tabeli loomine List-objektina"
B19: Puidu müük
B21: kuupäev | C21: liik | D21: kogus | E21: hind | F21: maksumus
B22: 2013-11-01 | C22: kask | D22: 10 | E22: =VLOOKUP(liik, Hinnakiri[], 2, 0) -> 120 | F22: =hind*kogus -> 1200
B23: 2013-11-02 | C23: saar | D23: 20 | E23: =VLOOKUP(liik, Hinnakiri[], 2, 0) -> 210 | F23: 4200
B24: 2013-11-02 | C24: mänd | D24: 13 | E24: =VLOOKUP(liik, Hinnakiri[], 2, 0) -> 150 | F24: 1950
B25: 2013-11-03 | C25: lepp | D25: 12 | E25: =VLOOKUP(liik, Hinnakiri[], 2, 0) -> 110 | F25: 1320
B26: 2013-11-03 | C26: paju | D26: 21 | E26: =VLOOKUP(liik, Hinnakiri[], 2, 0) -> 76 | F26: 1596
B27: 2013-11-03 | C27: kask | D27: 30 | E27: =VLOOKUP(liik, Hinnakiri[], 2, 0) -> 120 | F27: 3600
B28: Total | D28: =SUBTOTAL(109,[kogus]) -> 106 | F28: =SUBTOTAL(109,[maksumus]) -> 13866

Sheet Table_2_2
D1: Valideerimine | E1: Otsimine | F1: Klipp "Tabeli loomine List-objektina"
B13: Puidu müük
B15: kuupäev | C15: liik | D15: kogus | E15: hind | F15: maksumus
B16: 2013-11-01 | C16: kask | D16: 10 | E16: =VLOOKUP([liik], Hinnakiri[], 2, 0) -> 120 | F16: =[hind]*[kogus] -> 1200
B17: 2013-11-01 | C17: lepp | D17: 13 | E17: =VLOOKUP([liik], Hinnakiri[], 2, 0) -> 110 | F17: =[hind]*[kogus] -> 1430
B18: 2013-11-02 | C18: lepp | D18: 21 | E18: =VLOOKUP([liik], Hinnakiri[], 2, 0) -> 110 | F18: =[hind]*[kogus] -> 2310
B19: 2013-11-02 | C19: mänd | D19: 10 | E19: =VLOOKUP([liik], Hinnakiri[], 2, 0) -> 150 | F19: =[hind]*[kogus] -> 1500

Sheet Hinnakiri
B3: Puidu hinnakiri
B5: liigid | C5: hinnad
B6: haab | C6: 76
B7: kask | C7: 120
B8: kuusk | C8: 160
B9: lepp | C9: 110
B10: mänd | C10: 150
B11: paju | C11: 76
B12: saar | C12: 210
B13: tamm | C13: 230
B14: vaher | C14: 220

Sheet Fun_tab1_N
B3: Funktsioonide tabuleerimine ja graafikud. Variant 1
B5: algus | C5: lõpp | D5: jaotisi | E5: samm | F5: p | H5: ymin | I5: ymax | J5: zkesk
B6: -10 | C6: 10 | D6: 20 | E6: =(lõpp-algus)/jaotisi -> 1 | F6: 2 | H6: =MIN(y) -> -2.938371722 | I6: =MAX(y) -> 2.72789228 | J6: =AVERAGE(z) -> -0.2110010223
B8: x | C8: y | D8: z
B9: =algus -> -10 | C9: =3*SIN(x+2)*COS(x/2) -> -0.8419305673 | D9: =IF(x<=p, 5*COS(2*x-3), 3*SIN(x+1)) -> -2.664165102
B10: =B9+samm -> -9 | C10: 0.4154700459 | D10: -2.738646301
B11: -8 | C11: -0.5479144739 | D11: 4.943523091
B12: -7 | C12: -2.693973149 | D12: -1.37581669
B13: -6 | C13: -2.247686375 | D13: -3.798439564
B14: -5 | C14: 0.3391721804 | D14: 4.537233907
B15: -4 | C15: 1.135203743 | D15: 0.02212848994
B16: -3 | C16: -0.1785699082 | D16: -4.555651309
B17: -2 | C17: 0 | D17: 3.769511272
B18: -1 | C18: 2.215380788 | D18: 1.418310927
B19: 0 | C19: 2.72789228 | D19: -4.949962483
B20: 1 | C20: 0.3715333746 | D20: 2.701511529
B21: 2 | C21: -1.2267064 | D21: 2.701511529
B22: 3 | C22: -0.2034948594 | D22: -2.270407486
B23: 4 | C23: 0.348833627 | D23: -2.876772824
B24: 5 | C24: -1.579021857 | D24: -0.8382464946
B25: 6 | C25: -2.938371722 | D25: 1.970959796
B26: 7 | C26: -1.157793334 | D26: 2.96807474
B27: 8 | C27: 1.066787786 | D27: 1.236355456
B28: 9 | C28: 0.632381205 | D28: -1.632063333
B29: 10 | C29: -0.4566163397 | D29: -2.99997062

Sheet Fun_tab2_NT
B3: Funktsioonide tabuleerimine ja graafikud. Variant 2 - Table-objekt
B5: algus | C5: samm | D5: p | F5: zmin | G5: zmax | H5: ykesk
B6: -5 | C6: 1 | D6: 2 | F6: =MIN(z) -> -4.949962483 | G6: =MAX(z) -> 4.537233907 | H6: =AVERAGE(y) -> 0.06853816024
B8: x | C8: y | D8: z
B9: =algus -> -5 | C9: =3*SIN(x+2)*COS(x/2) -> 0.3391721804 | D9: =IF(x<=p, 5*COS(2*x-3), 3*SIN(x+1)) -> 4.537233907
B10: =B9+samm -> -4 | C10: 1.135203743 | D10: 0.02212848994
B11: -3 | C11: -0.1785699082 | D11: -4.555651309
B12: -2 | C12: 0 | D12: 3.769511272
B13: -1 | C13: 2.215380788 | D13: 1.418310927
B14: 0 | C14: 2.72789228 | D14: -4.949962483
B15: 1 | C15: 0.3715333746 | D15: 2.701511529
B16: 2 | C16: -1.2267064 | D16: 2.701511529
B17: 3 | C17: -0.2034948594 | D17: -2.270407486
B18: 4 | C18: 0.348833627 | D18: -2.876772824
B19: 5 | C19: -1.579021857 | D19: -0.8382464946
B20: 6 | C20: =3*SIN(x+2)*COS(x/2) -> -2.938371722 | D20: =IF(x<=p, 5*COS(2*x-3), 3*SIN(x+1)) -> 1.970959796
B21: 7 | C21: =3*SIN(x+2)*COS(x/2) -> -1.157793334 | D21: =IF(x<=p, 5*COS(2*x-3), 3*SIN(x+1)) -> 2.96807474
B22: 8 | C22: =3*SIN(x+2)*COS(x/2) -> 1.066787786 | D22: =IF(x<=p, 5*COS(2*x-3), 3*SIN(x+1)) -> 1.236355456
B23: 9 | C23: =3*SIN(x+2)*COS(x/2) -> 0.632381205 | D23: =IF(x<=p, 5*COS(2*x-3), 3*SIN(x+1)) -> -1.632063333
B24: 10 | C24: =3*SIN(x+2)*COS(x/2) -> -0.4566163397 | D24: =IF(x<=p, 5*COS(2*x-3), 3*SIN(x+1)) -> -2.99997062

Sheet Värvimine_ÜP
B3: Lagede värvimine III

Sheet Ruumid
B2: Ruumid
B4: R_kood | C4: pikkus | D4: laius | E4: kõrgus | F4: pindala | G4: S_pind | H4: U_pind | I4: A_pind | J4: ...
B5: R_101 | C5: 5 | D5: 4 | E5: 2.8 | F5: 20 | G5: 44.4 | H5: 2.5 | I5: 3.5
B6: R_102 | C6: 6 | D6: 5 | E6: 3.2 | F6: 30 | G6: 62 | H6: 3.5 | I6: 4.9
B7: R_103 | C7: 6 | D7: 3 | E7: 2.8 | F7: 18 | G7: 44.4 | H7: 2.5 | I7: 3.5
B8: R_104 | C8: 4 | D8: 3 | E8: 2.8 | F8: 12 | G8: 34.5 | H8: 2 | I8: 2.7
B9: R_105 | C9: 4.8 | D9: 3.2 | E9: 2.8 | F9: 15.4 | G9: 39.5 | H9: 2.2 | I9: 3.1
B10: R_106 | C10: 4.2 | D10: 3.8 | E10: 2.8 | F10: 16 | G10: 39.5 | H10: 2.2 | I10: 3.1
B11: R_107 | C11: 5.25 | D11: 4.2 | E11: 2.8 | F11: 22.1 | G11: 47.3 | H11: 2.6 | I11: 3
B12: R_108 | C12: 6.3 | D12: 4.75 | E12: 2.8 | F12: 29.9 | G12: 54.5 | H12: 3.1 | I12: 4.3
B13: R_109 | C13: 6 | D13: 5 | E13: 2.5 | F13: 30 | G13: 48.3 | H13: 2.8 | I13: 3.9
B14: R_110 | C14: 7.2 | D14: 6.1 | E14: 2.8 | F14: 43.9 | G14: 65.6 | H14: 3.7 | I14: 5.2
B15: R_111 | C15: 6 | D15: 4.6 | E15: 3.2 | F15: =C15*D15 -> 27.6 | G15: =2*(C15+D15) * E15 -> 67.84 | H15: =0.04*G15 -> 2.7136 | I15: =0.05*G15 -> 3.392
B16: R_112 | C16: 7.35 | D16: 5.2 | E16: 3.2 | F16: =C16*D16 -> 38.22 | G16: =2*(C16+D16) * E16 -> 80.32 | H16: =0.04*G16 -> 3.2128 | I16: =0.05*G16 -> 4.016
B17: R_113 | C17: 4.28 | D17: 3.3 | E17: 3.2 | F17: =C17*D17 -> 14.124 | G17: =2*(C17+D17) * E17 -> 48.512 | H17: =0.04*G17 -> 1.94048 | I17: =0.05*G17 -> 2.4256
B18: R_201 | C18: 5 | D18: 4 | E18: 2.8 | F18: 20 | G18: 44.4 | H18: 2.5 | I18: 3.5
B19: R_202 | C19: 6 | D19: 5 | E19: 3.2 | F19: 30 | G19: 62 | H19: 3.5 | I19: 4.9
B20: R_203 | C20: 4 | D20: 2.8 | E20: 2.8 | F20: 11.2 | G20: 33.5 | H20: 1.9 | I20: 2.7
B21: R_204 | C21: 4 | D21: 3 | E21: 2.8 | F21: 12 | G21: 34.5 | H21: 2 | I21: 2.7
B22: R_205 | C22: 4.8 | D22: 4 | E22: 2.8 | F22: 19.2 | G22: 43.4 | H22: 2.5 | I22: 3.4
B23: R_206 | C23: 4.2 | D23: 3.8 | E23: 2.8 | F23: 16 | G23: 39.5 | H23: 2.2 | I23: 3.1
B24: R_207 | C24: 5.25 | D24: 4.2 | E24: 2.8 | F24: 22.1 | G24: 46.6 | H24: 2.6 | I24: 3.7
B25: R_208 | C25: 6.3 | D25: 4.75 | E25: 2.8 | F25: 29.9 | G25: 54.5 | H25: 3.1 | I25: 4.3
B26: R_209 | C26: 6 | D26: 5 | E26: 2.5 | F26: 30 | G26: 48.3 | H26: 2.8 | I26: 3.9
B27: R_210 | C27: 7.2 | D27: 6.1 | E27: 2.8 | F27: 43.9 | G27: 65.6 | H27: 3.7 | I27: 5.2
B28: R_211 | C28: 7 | D28: 4.7 | E28: 2.8 | F28: 32.9 | G28: 57.6 | H28: 3.3 | I28: 4.6
B29: R_212 | C29: 6.4 | D29: 4.7 | E29: 2.8 | F29: 30.1 | G29: 54.7 | H29: 3.1 | I29: 4.4
B30: R_213 | C30: 7.35 | D30: 5.2 | E30: 3.2 | F30: =C30*D30 -> 38.22 | G30: =2*(C30+D30) * E30 -> 80.32 | H30: =0.04*G30 -> 3.2128 | I30: =0.05*G30 -> 4.016
B31: R_301 | C31: 7.35 | D31: 6 | E31: 3.2 | F31: 44.1 | G31: 85.44 | H31: 3.4176 | I31: 4.272
B32: R_302 | C32: 3.2 | D32: 2.8 | E32: 3.2 | F32: 8.96 | G32: 38.4 | H32: 1.536 | I32: 1.92
B33: R_303 | C33: 6.2 | D33: 4.75 | E33: 3.2 | F33: 29.45 | G33: 70.08 | H33: 2.8032 | I33: 3.504
B34: R_304 | C34: 5.75 | D34: 3.8 | E34: 3.2 | F34: 21.85 | G34: 61.12 | H34: 2.4448 | I34: 3.056
B35: R_305 | C35: 4.3 | D35: 4.2 | E35: 3.2 | F35: 18.06 | G35: 54.4 | H35: 2.176 | I35: 2.72
B36: R_306 | C36: 8.3 | D36: 5.2 | E36: 3.2 | F36: 43.16 | G36: 86.4 | H36: 3.456 | I36: 4.32
B37: R_307 | C37: 7.35 | D37: 4 | E37: 3.2 | F37: 29.4 | G37: 72.64 | H37: 2.9056 | I37: 3.632
B38: R_308 | C38: 6.4 | D38: 5.2 | E38: 3.2 | F38: 33.28 | G38: 74.24 | H38: 2.9696 | I38: 3.712
B39: R_309 | C39: 5 | D39: 4 | E39: 3.2 | F39: 20 | G39: 57.6 | H39: 2.304 | I39: 2.88
B40: R_310 | C40: 7.1 | D40: 5.2 | E40: 3.2 | F40: 36.92 | G40: 78.72 | H40: 3.1488 | I40: 3.936
B41: R_311 | C41: 5.55 | D41: 3.7 | E41: 3.2 | F41: 20.535 | G41: 59.2 | H41: 2.368 | I41: 2.96
B42: R_312 | C42: 4.4 | D42: 4 | E42: 3.2 | F42: 17.6 | G42: 53.76 | H42: 2.1504 | I42: 2.688
B43: R_313 | C43: 6 | D43: 5.2 | E43: 3.2 | F43: 31.2 | G43: 71.68 | H43: 2.8672 | I43: 3.584

Sheet Värvimine_tab
B2: Lagede värvimine III | E2: Siia teha tabel Värvimine
B4: J Ehitus | C4: objekt | D4: Kullaladu | F4: tariif | G4: 1.2 | I4: muud | J4: 0.1
B6: ruum | C6: värv | D6: pind | E6: hind_v | F6: kogus_v | G6: maks_v | H6: töötasu | I6: muud_kulud | J6: kulud_kokku
B7: R_103 | C7: VL_05 | D7: =VLOOKUP(ruum, Ruumid[], 5, 0) -> 18 | E7: =VLOOKUP(värv, Värvid[], 3, 0) -> 4.06 | F7: =VLOOKUP(värv, Värvid[], 2, 0) * pind -> 11.7 | G7: =hind_v * kogus_v -> 47.502 | H7: =tariif * pind -> 21.6 | I7: =muud * (maks_v+töötasu) -> 6.9102 | J7: =maks_v+töötasu+muud_kulud -> 76.0122
B8: R_105 | C8: VL_01 | D8: =VLOOKUP(ruum, Ruumid[], 5, 0) -> 15.4 | E8: =VLOOKUP(värv, Värvid[], 3, 0) -> 3.05 | F8: =VLOOKUP(värv, Värvid[], 2, 0) * pind -> 8.008 | G8: 24.4244 | H8: 18.48 | I8: 4.29044 | J8: 47.19484
B9: R_106 | C9: VL_05 | D9: =VLOOKUP(ruum, Ruumid[], 5, 0) -> 16 | E9: =VLOOKUP(värv, Värvid[], 3, 0) -> 4.06 | F9: =VLOOKUP(värv, Värvid[], 2, 0) * pind -> 10.4 | G9: 42.224 | H9: 19.2 | I9: 6.1424 | J9: 67.5664
B10: R_113 | C10: VL_05 | D10: =VLOOKUP(ruum, Ruumid[], 5, 0) -> 14.124 | E10: =VLOOKUP(värv, Värvid[], 3, 0) -> 4.06 | F10: =VLOOKUP(värv, Värvid[], 2, 0) * pind -> 9.1806 | G10: 37.273236 | H10: 16.9488 | I10: 5.4222036 | J10: 59.6442396
B11: R_201 | C11: VL_02 | D11: =VLOOKUP(ruum, Ruumid[], 5, 0) -> 20 | E11: =VLOOKUP(värv, Värvid[], 3, 0) -> 3.37 | F11: =VLOOKUP(värv, Värvid[], 2, 0) * pind -> 9.6 | G11: 32.352 | H11: 24 | I11: 5.6352 | J11: 61.9872
B12: R_202 | C12: VL_01 | D12: =VLOOKUP(ruum, Ruumid[], 5, 0) -> 30 | E12: =VLOOKUP(värv, Värvid[], 3, 0) -> 3.05 | F12: =VLOOKUP(värv, Värvid[], 2, 0) * pind -> 15.6 | G12: 47.58 | H12: 36 | I12: 8.358 | J12: 91.938
B13: R_203 | C13: VL_01 | D13: =VLOOKUP(ruum, Ruumid[], 5, 0) -> 11.2 | E13: =VLOOKUP(värv, Värvid[], 3, 0) -> 3.05 | F13: =VLOOKUP(värv, Värvid[], 2, 0) * pind -> 5.824 | G13: 17.7632 | H13: 13.44 | I13: 3.12032 | J13: 34.32352
B14: R_204 | C14: VL_05 | D14: =VLOOKUP(ruum, Ruumid[], 5, 0) -> 12 | E14: =VLOOKUP(värv, Värvid[], 3, 0) -> 4.06 | F14: =VLOOKUP(värv, Värvid[], 2, 0) * pind -> 7.8 | G14: 31.668 | H14: 14.4 | I14: 4.6068 | J14: 50.6748
B15: R_107 | C15: VL_11 | D15: =VLOOKUP(ruum, Ruumid[], 5, 0) -> 22.1 | E15: =VLOOKUP(värv, Värvid[], 3, 0) -> 3.17 | F15: =VLOOKUP(värv, Värvid[], 2, 0) * pind -> 10.608 | G15: =hind_v * kogus_v -> 33.62736 | H15: =tariif * pind -> 26.52 | I15: =muud * (maks_v+töötasu) -> 6.014736 | J15: =maks_v+töötasu+muud_kulud -> 66.162096
B16: R_109 | C16: VL_06 | D16: =VLOOKUP(ruum, Ruumid[], 5, 0) -> 30 | E16: =VLOOKUP(värv, Värvid[], 3, 0) -> 3.17 | F16: =VLOOKUP(värv, Värvid[], 2, 0) * pind -> 13.5 | G16: =hind_v * kogus_v -> 42.795 | H16: =tariif * pind -> 36 | I16: =muud * (maks_v+töötasu) -> 7.8795 | J16: =maks_v+töötasu+muud_kulud -> 86.6745
B17: R_312 | C17: VL_06 | D17: =VLOOKUP(ruum, Ruumid[], 5, 0) -> 17.6 | E17: =VLOOKUP(värv, Värvid[], 3, 0) -> 3.17 | F17: =VLOOKUP(värv, Värvid[], 2, 0) * pind -> 7.92 | G17: =hind_v * kogus_v -> 25.1064 | H17: =tariif * pind -> 21.12 | I17: =muud * (maks_v+töötasu) -> 4.62264 | J17: =maks_v+töötasu+muud_kulud -> 50.84904

Sheet Fun_XY_N
B2: Kahemuutuja funktsiooni tabel ja graafik. Nimed
B4: ax | C4: bx | D4: nx | E4: hx | F4: a | G4: ay | H4: by | I4: ny | J4: hy
B5: 2 | C5: 7 | D5: 10 | E5: =(bx-ax)/nx -> 0.5 | F5: 5 | G5: 4 | H5: 14 | I5: 10 | J5: =(by-ay)/ny -> 1
C8: =ax -> 2 | D8: =C8+hx -> 2.5 | E8: 3 | F8: 3.5 | G8: 4 | H8: 4.5 | I8: 5 | J8: 5.5 | K8: 6 | L8: 6.5 | M8: 7
B9: =ay -> 4 | C9: =a*SIN(x)*COS(y) -> -2.971782313 | D9: -1.955937496 | E9: -0.4612109652 | F9: 1.146436095 | G9: 2.473395617 | H9: 3.194781628 | I9: 3.133973675 | J9: 2.305859665 | K9: 0.9131907898 | L9: -0.7030590397 | M9: -2.147175496
B10: =B9+hy -> 5 | C10: 1.289666477 | D10: 0.8488195817 | E10: 0.2001520495 | F10: -0.497519685 | G10: -1.073381249 | H10: -1.386441648 | I10: -1.360052777 | J10: -1.000675553 | K10: -0.3962980544 | L10: 0.3051070298 | M10: 0.9318112721
B11: 6 | C11: 4.365401855 | D11: 2.873175851 | E11: 0.677496193 | F11: -1.684058161 | G11: -3.633296344 | H11: -4.692976866 | I11: -4.603652978 | J11: -3.387194283 | K11: -1.341432295 | L11: 1.032759103 | M11: 3.154095054
B12: 7 | C12: 3.4276069 | D12: 2.255947493 | E12: 0.531953461 | F12: -1.322281331 | G12: -2.852775537 | H12: -3.684810797 | I12: -3.614675862 | J12: -2.65954221 | K12: -1.05325987 | L12: 0.8108972199 | M12: 2.476518389
B13: 8 | C13: -0.6615140317 | D13: -0.435388586 | E13: -0.1026648297 | F13: 0.2551948574 | G13: 0.5505739433 | H13: 0.7111533258 | I13: 0.6976175719 | J13: 0.5132807061 | K13: 0.2032748222 | L13: -0.1564998277 | M13: -0.4779578616
B14: 9 | C14: -4.142442013 | D14: -2.726430407 | E14: -0.6428935495 | F14: 1.598046071 | G14: 3.447728279 | H14: 4.453286361 | I14: 4.368524628 | J14: 3.214195708 | K14: 1.27291958 | L14: -0.9800116554 | M14: -2.993001859
B15: 10 | C15: -3.814827912 | D15: -2.510804685 | E15: -0.5920489047 | F15: 1.471661096 | G15: 3.175057135 | H15: 4.101088453 | I15: 4.023030287 | J15: 2.959993999 | K15: 1.172247947 | L15: -0.9025052867 | M15: -2.75629375
B16: 11 | C16: 0.02012137896 | D16: 0.01324328482 | E16: 0.003122772679 | F16: -0.007762303125 | G16: -0.0167468964 | H16: -0.02163126538 | I16: -0.02121954617 | J16: -0.015612542 | K16: -0.006183043041 | L16: 0.004760280492 | M16: 0.01453812134
B17: 12 | C17: 3.836571166 | D17: 2.52511544 | E17: 0.5954233873 | F17: -1.480049077 | G17: -3.193153908 | H17: -4.124463298 | I17: -4.045960226 | J17: -2.976864984 | K17: -1.178929371 | L17: 0.9076492678 | M17: 2.772003711
B18: 13 | C18: 4.125695117 | D18: 2.715408105 | E18: 0.6402944856 | F18: -1.591585555 | G18: -3.433789943 | H18: -4.435282795 | I18: -4.350863733 | J18: -3.201201488 | K18: -1.267773473 | L18: 0.9760497041 | M18: 2.980901872
B19: 14 | C19: 0.6216740033 | D19: 0.4091670808 | E19: 0.09648178668 | F19: -0.2398256137 | G19: -0.5174153397 | H19: -0.668323745 | I19: -0.6556031889 | J19: -0.4823681073 | K19: -0.1910324897 | L19: 0.1470745438 | M19: 0.4491725995

Sheet Lisad
E9: Lisad
E11: Table-objekt, tulbapäisete kasutamine valemites
E12: Otsimine. Funktsioon VLOOKUP
E13: Valideerimine tabelites
E14: Diagrammid
E15: Valemite kopeerimine
E16: R1C1- aadressid

Sheet Valideerimine
B3: Valideerimine loendiga
B5: Määrake valideerimine allpoololevatele lahtritele
B6: sugu | C6: mees | D6: naine või mees, määrata Data Validation boksis
B7: nädalapäev | C7: L | D7: määrata Data Validation boksis esitähtede abil
B8: nädalapäev | C8: laupäev | D8: loendist nimega päevad | F8: Päevad
B9: kuu | C9: oktoober | D9: loend Kuud lehel abi | F9: Kuud
B10: töötaja | C10: Hunt | D10: loend T_nimi lehel abi | F10: T_nimi
B11: puu liik | C11: mänd | D11: loend P_liigid lehel abi | F11: P_liigid
B14: Valideerimine tabeli tulpades
B15: Määrake valideerimine allpoololevale tabeli tulpadele (vt kommentaari) ja koostage valemid
B17: Kuupäev | C17: Müüja | D17: Puu liik | E17: Sort | F17: Kogus | G17: Hind | H17: Maksumus
B18: 2014-10-13 | C18: Rebane | D18: kuusk | E18: 2 | F18: 10 | G18: =IF(Puu_liik="", "",VLOOKUP(Puu_liik, Hinnad, 2, 0)) -> 160 | H18: =IF(Kogus="", "", Hind * Kogus) -> 1600
B19: 2014-10-13 | C19: Hunt | D19: paju | E19: 4 | F19: 34 | G19: 76 | H19: 2584

Sheet abi
F2: Puidu hinnakiri | I2: M_töötajad
B4: Kuud | D4: Päevad | F4: P_liigid | G4: Hinnad | I4: T_nimi | J4: Amet | K4: Palk
B5: jaanuar | D5: esmaspäev | F5: haab | G5: 76 | I5: Karu | J5: metsülem | K5: 5000
B6: veebruar | D6: teisipäev | F6: kask | G6: 120 | I6: Hunt | J6: turvamees | K6: 4500
B7: märts | D7: kolmapäev | F7: kuusk | G7: 160 | I7: Rebane | J7: ärimees | K7: 5600
B8: aprill | D8: neljapäev | F8: lepp | G8: 110 | I8: Jänes | J8: käskjalg | K8: 450
B9: mai | D9: reede | F9: mänd | G9: 150 | I9: Siil | J9: raamatupidaja | K9: 5467
B10: juuni | D10: laupäev | F10: paju | G10: 76 | I10: Kits | J10: diiler | K10: 4000
B11: juuli | D11: pühapäev | F11: saar | G11: 210 | I11: Sokk | J11: kirvemees | K11: 300
B12: august | F12: tamm | G12: 230
B13: september | F13: vaher | G13: 220
B14: oktoober
B15: november
B16: detsember

Sheet Table_obj
B2: Tabeli-objekti tulbapäisete ja tabelite nimede kasutamine valemites (struktuursed viited - structured referenced)
B3: vt. kommentaari
B4: Arvutite müügid | F4: km_prots | G4: 0.18 | J4: Arvutid
B6: kuupäev | C6: arvuti | D6: arv | E6: hind | F6: maks_kga | G6: käibemaks | H6: maks_kta | J6: mark | K6: protsessor | L6: määlu, MB | M6: ketas,GB | N6: hind | O6: hind_kta
B7: 2013-11-01 | C7: Frodo | D7: 3 | E7: =VLOOKUP([arvuti], Arvukid[], 5, 0) -> 730 | F7: =[hind] *[arv] -> 2190 | G7: =km_prots * [maks_kga] -> 394.2 | H7: =[maks_kga] - [käibemaks] -> 1795.8 | J7: Aragorn | K7: Pent 4; 3,0 | L7: 512 | M7: 160 | N7: 350 | O7: =Arvukid[[#This Row],[hind]] - km_prots * Arvukid[[#This Row],[hind]] -> 287
B8: 2013-11-01 | C8: Balrog | D8: 1 | E8: =VLOOKUP([arvuti], Arvukid[], 5, 0) -> 320 | F8: =[hind] *[arv] -> 320 | G8: =km_prots * [maks_kga] -> 57.6 | H8: =[maks_kga] - [käibemaks] -> 262.4 | J8: Aura | K8: AMD 64; 3,0 | L8: 512 | M8: 160 | N8: 380 | O8: =Arvukid[[#This Row],[hind]] - km_prots * Arvukid[[#This Row],[hind]] -> 311.6
B9: 2013-11-02 | C9: Frodo | D9: 6 | E9: =VLOOKUP([arvuti], Arvukid[], 5, 0) -> 730 | F9: =[hind] *[arv] -> 4380 | G9: =km_prots * [maks_kga] -> 788.4 | H9: =[maks_kga] - [käibemaks] -> 3591.6 | J9: Balrog | K9: Pent 4; 3,0 | L9: 512 | M9: 160 | N9: 320 | O9: =Arvukid[[#This Row],[hind]] - km_prots * Arvukid[[#This Row],[hind]] -> 262.4
B10: 2013-11-02 | C10: Polaris | D10: 4 | E10: =VLOOKUP([arvuti], Arvukid[], 5, 0) -> 220 | F10: =[hind] *[arv] -> 880 | G10: =km_prots * [maks_kga] -> 158.4 | H10: =[maks_kga] - [käibemaks] -> 721.6 | J10: Eliisa | K10: AMD S; 3,0 | L10: 512 | M10: 160 | N10: 320 | O10: =Arvukid[[#This Row],[hind]] - km_prots * Arvukid[[#This Row],[hind]] -> 262.4
B11: 2013-11-02 | C11: Balrog | D11: 2 | E11: =VLOOKUP([arvuti], Arvukid[], 5, 0) -> 320 | F11: =[hind] *[arv] -> 640 | G11: =km_prots * [maks_kga] -> 115.2 | H11: =[maks_kga] - [käibemaks] -> 524.8 | J11: Frodo | K11: AMD 64; 3,8 | L11: 1024 | M11: 320 | N11: 730 | O11: =Arvukid[[#This Row],[hind]] - km_prots * Arvukid[[#This Row],[hind]] -> 598.6
B12: 2013-11-03 | C12: Futura | D12: 3 | E12: =VLOOKUP([arvuti], Arvukid[], 5, 0) -> 380 | F12: =[hind] *[arv] -> 1140 | G12: =km_prots * [maks_kga] -> 205.2 | H12: =[maks_kga] - [käibemaks] -> 934.8 | J12: Futura | K12: AMD 64; 3,5 | L12: 512 | M12: 160 | N12: 380 | O12: =Arvukid[[#This Row],[hind]] - km_prots * Arvukid[[#This Row],[hind]] -> 311.6
B13: 2013-11-04 | C13: Eliisa | D13: 1 | E13: =VLOOKUP([arvuti], Arvukid[], 5, 0) -> 320 | F13: =[hind] *[arv] -> 320 | G13: =km_prots * [maks_kga] -> 57.6 | H13: =[maks_kga] - [käibemaks] -> 262.4 | J13: Polaris | K13: Intel C; 2,5 | L13: 256 | M13: 80 | N13: 220 | O13: =Arvukid[[#This Row],[hind]] - km_prots * Arvukid[[#This Row],[hind]] -> 180.4
B14: 2013-11-04 | C14: Frodo | D14: 7 | E14: =VLOOKUP([arvuti], Arvukid[], 5, 0) -> 730 | F14: =[hind] *[arv] -> 5110 | G14: =km_prots * [maks_kga] -> 919.8 | H14: =[maks_kga] - [käibemaks] -> 4190.2 | J14: Sambo | K14: Pent 4; 3,0 | L14: 512 | M14: 160 | N14: 450 | O14: =Arvukid[[#This Row],[hind]] - km_prots * Arvukid[[#This Row],[hind]] -> 369
B15: Total | D15: =SUBTOTAL(109,[arv]) -> 27 | F15: =SUBTOTAL(109,[maks_kga]) -> 14980 | G15: =SUBTOTAL(109,[käibemaks]) -> 2696.4 | H15: =SUBTOTAL(109,[maks_kta]) -> 12283.6 | J15: Tetris | K15: AMD S; 2,6 | L15: 256 | M15: 40 | N15: 240 | O15: =Arvukid[[#This Row],[hind]] - km_prots * Arvukid[[#This Row],[hind]] -> 196.8
D16: =SUBTOTAL(109;[arv]) | G16: =SUBTOTAL(109;[käibemaks]) | J16: Ultra | K16: Intel C; 3,0 | L16: 512 | M16: 160 | N16: 300 | O16: =Arvukid[[#This Row],[hind]] - km_prots * Arvukid[[#This Row],[hind]] -> 246
E18: =VLOOKUP([arvuti]; Arvukid; 5; 0) | O18: =[@hind]- km_prots*[@hind]
F19: =[hind] * [arv]
G20: =km_prots * [maks_kga]
H21: =[maks_kga] - [käibemaks]
B23: =SUM(A_müügid[arv]) -> 27 | E23: =MAX(A_müügid[hind]) -> 730 | G23: =MAX(Arvukid[hind]) -> 730
B25: =A_müügid[[#Totals], [maks_kga]] * 15.6466 -> 234386.068
B27: =SUM(A_müügid[[#Totals],[maks_kta]],A_müügid[[#Data],[käibemaks]]) -> 14980 | C27: Struktuurse viite näide
B28: =SUM(A_müügid[[#Totals];[maks_kta]];A_müügid[[#Data];[käibemaks]])

Sheet VLOOKUP
B2: Otsimisfunktsioon VLOOKUP
B3: Otsimine vertikaalsest tabelist
B4: VLOOKUP(otsitav; tabel; tulemi_tulba_nr; tunnus)
B5: Otsib otsitavale vastavat väärtust tabeli esimesest tulbast ja
B6: tagastab tulemuse tulbast numbriga tulemi_tulba_nr.
B8: otsitav - otsitav väärtus: konstant või viit lahtrile (aadress, nimi)
B9: tabel - tabel, mille esimeses tulbas toimub otsimine: piirkonna aadess või nimi
B10: tulemi_tulba_nr - tabeli tulba number, kust võetakse tagastatav väärtus: arv või arvavaldis
B11: tunnus - määrab väärtuste järjestamise tingimuse tabeli esimeses tulbas ja ka otsimisviisi: 0 või 1
B12: 0 - väärtused tabeli esimeses tulbas võivad olla suvalises järjekorras - kindla väärtuse otsimine
B13: kui otsitavaga võrdset väärtust esimeses tulbas ei ole - veateade - #N/A
B14: 1 - väärtused tabeli esimeses tulbas peavad olema kasvamise järjekorras - vahemiku otsimine
B15: kui otsitavaga võrdset väärtust esimeses tulbas ei ole, tagastatakse lähim väiksem väärtus
B17: Mark | C17: Hind | D17: Protsessor | E17: Kõvaketas | F17: Põhimälu
B18: Frodo | C18: =VLOOKUP(Mark, Arvutid_1[], 6, 0) -> 1330 | D18: =VLOOKUP(Mark, Arvutid_1[], 2, 0) & "; " & VLOOKUP(Mark, Arvutid_1[], 3, 0) -> AMD Athlon64; 3 | E18: =VLOOKUP(Mark, Arvutid_1[], 5, 0) -> 500 | F18: =VLOOKUP(Mark, Arvutid_1[], 4, 0) -> 6
B21: Arvutid
B22: 1 | C22: 2 | D22: 3 | E22: 4 | F22: 5 | G22: 6
B24: mark | C24: prots_tüüp | D24: taktsagedus | E24: mälu, GB | F24: ketas,GB | G24: hind, €
B25: Aragorn | C25: AMD Athlon64 | D25: 3 | E25: 4 | F25: 160 | G25: 499
B26: Arven | C26: Intel Core 2 | D26: 2.6 | E26: 4 | F26: 200 | G26: 369
B27: Balrog | C27: Intel Celeron | D27: 2.8 | E27: 4 | F27: 80 | G27: 419
B28: Eldar | C28: Intel Xeon | D28: 3 | E28: 8 | F28: 160 | G28: 465
B29: Elend | C29: Intel Celeron | D29: 4 | E29: 12 | F29: 400 | G29: 1299
B30: Faram | C30: AMD Athlon64 | D30: 3 | E30: 4 | F30: 210 | G30: 599
B31: Frodo | C31: AMD Athlon64 | D31: 3 | E31: 6 | F31: 500 | G31: 1330
B32: Gandalf | C32: Intel Xeon | D32: 3.2 | E32: 4 | F32: 160 | G32: 849
B33: Grimbold | C33: Intel Core 2 | D33: 3.8 | E33: 8 | F33: 320 | G33: 1149
B34: Kalvar | C34: Intel Xeon | D34: 3 | E34: 4 | F34: 160 | G34: 699
B35: Marvin | C35: Intel Celeron | D35: 3 | E35: 4 | F35: 160 | G35: 599
B36: Rohan | C36: AMD Athlon64 | D36: 3.5 | E36: 4 | F36: 160 | G36: 589
B37: Sauron | C37: Intel Xeon | D37: 2.5 | E37: 2 | F37: 180 | G37: 339

Sheet Diagr_1
B2: Diagramm töölehel
B4: Müükide maht
B6: Kv | C6: Liha | D6: Piim | E6: Suhkur | F6: Kokku
B7: 1 | C7: 150 | D7: 140 | E7: 150 | F7: =SUM(C7:E7) -> 440
B8: 2 | C8: 175 | D8: 172 | E8: 180 | F8: =SUM(C8:E8) -> 527
B9: 3 | C9: 149 | D9: 210 | E9: 156 | F9: =SUM(C9:E9) -> 515
B10: 4 | C10: 177 | D10: 146 | E10: 227 | F10: =SUM(C10:E10) -> 550
B11: Kokku | C11: =SUM(C7:C10) -> 651 | D11: =SUM(D7:D10) -> 668 | E11: =SUM(E7:E10) -> 713 | F11: =SUM(F7:F10) -> 2032

Sheet Addr_R1C1

Sheet Kopeerimine
B3: Valemite kopeerimise (paljundamise) võimalused
B4: - lohistamine (vedamine) hiire vasakpoolse nupuga
B5: - topeltklõps hiire vasakpoolse nupuga
B6: - objektimenüü korraldused Copy ja Paste (või klahv Enter)
B7: - Edit-menüü korraldused Copy ja Paste (või klahv Enter)
B8: - riistariba nupud Copy ja Paste (või klahv Enter)
B9: - klahvid Ctrl+C ja Ctrl+V (või klahv Enter)
B11: NB! Menüüde, nupude ja klahvide kasutamisel võib ühe osa tegevusest
B12: täita ühe vahendiga, teise osa - teisega, näiteks
A13: , | B13: kopeerimine teha objektimenüü korraldusega Copy,
B14: kleepimine - klahvidega Ctrl+V jmt.

Sheet Lohista
B2: Valemite kopeerimine (paljundamine) lohistamisega ja topeltklõpsuga
B4: hind | C4: 2000
B6: a | C6: b | D6: pind | E6: maks | G6: a | H6: 5 | I6: 6 | J6: 4 | K6: 8 | L6: 7 | M6: 5
B7: 5 | C7: 4 | D7: =B7 * C7 -> 20 | E7: =$C$4 * D7 -> 40000 | G7: b | H7: 4 | I7: 3 | J7: 3 | K7: 5 | L7: 3 | M7: 5
B8: 6 | C8: 3 | G8: pind | H8: =H6 * H7 -> 20
B9: 4 | C9: 3 | G9: maks | H9: =$C$4 * H8 -> 40000
B10: 8 | C10: 5
B11: 7 | C11: 3
B12: 5 | C12: 5
B21: hind | C21: 2000
B23: a | C23: b | D23: pind | E23: maks
B24: 5 | C24: 4 | D24: =a * b -> 20 | E24: =hind * pind -> 40000
B25: 6 | C25: 3
B26: 4 | C26: 3
B27: 8 | C27: 5
B28: 7 | C28: 3
B29: 5 | C29: 5

Sheet Menüüd
B17: hind | C17: 2000
B19: a | C19: b | D19: pind | E19: maks | G19: a | H19: 5 | I19: 6 | J19: 4 | K19: 8 | L19: 7 | M19: 5
B20: 5 | C20: 4 | D20: =a * b -> 20 | E20: =hind * pind -> 40000 | G20: b | H20: 4 | I20: 3 | J20: 3 | K20: 5 | L20: 3 | M20: 5
B21: 6 | C21: 3 | G21: pind | H21: =H19 * H20 -> 20
B22: 4 | C22: 3 | G22: maks | H22: =$C$17 * H21 -> 40000
B23: 8 | C23: 5
B24: 7 | C24: 3
B25: 5 | C25: 5

Sheet Nupud
B14: hind | C14: 2000
B16: a | C16: b | D16: pind | E16: maks | G16: a | H16: 5 | I16: 6 | J16: 4 | K16: 8 | L16: 7 | M16: 5
B17: 5 | C17: 4 | D17: =a * b -> 20 | E17: =hind * pind -> 40000 | G17: b | H17: 4 | I17: 3 | J17: 3 | K17: 5 | L17: 3 | M17: 5
B18: 6 | C18: 3 | G18: pind | H18: =H16 * H17 -> 20
B19: 4 | C19: 3 | G19: maks | H19: =$C$14 * H18 -> 40000
B20: 8 | C20: 5
B21: 7 | C21: 3
B22: 5 | C22: 5

Sheet Ctrl_C_V
B14: hind | C14: 2000
B16: a | C16: b | D16: pind | E16: maks | G16: a | H16: 5 | I16: 6 | J16: 4 | K16: 8 | L16: 7 | M16: 5
B17: 5 | C17: 4 | D17: =a * b -> 20 | E17: =hind * pind -> 40000 | G17: b | H17: 4 | I17: 3 | J17: 3 | K17: 5 | L17: 3 | M17: 5
B18: 6 | C18: 3 | G18: pind | H18: =H16 * H17 -> 20
B19: 4 | C19: 3 | G19: maks | H19: =$C$14 * H18 -> 40000
B20: 8 | C20: 5
B21: 7 | C21: 3
B22: 5 | C22: 5

Sheet Sheet1

Sheet Sheet2
